Workbook

Sheet Cover Page
D1: Add company logo
N2: Version 20.6
B8: Add photo
N13: Notes:
N14: This template may require adjustments by individual operators to meet specific reporting requirements as defined in the site Permit(s)
B29: Annual Performance Report 2020
B31: Permit EPR/GP3433GH
B33: Cornwall Energy Recovery Centre
B37: SUEZ Recycling and Recovery UK Ltd
B39: Year: | C39: 2020
B41: Address: | C41: St Dennis, St Austell, Cornwall, PL26 8DY
B43: Tel: | C43: 07970 233762
B45: Email: | C45: richard.watkins@suez.com
B47: Prepared by: | C47: Richard Watkins | F47: Position: | G47: EIR Advisor
B49: Approved by: | C49: Tony Burge | F49: Position: | G49: Plant Manager
B51: Version: | C51: 1
B53: Issue Date: | C53: 2021-01-28

Sheet Contents
A1: =+'Cover Page'!$B$29 -> Annual Performance Report 2020 | E1: =+'Cover Page'!$B$33 -> Cornwall Energy Recovery Centre
A3: Contents | K3: Notes:
A4: Section | B4: Subject | H4: Page | K4: Section references and Page nos. to be inserted
B5: Facility Information | K5: Sections and Subjects may require adjustment by individual operators to meet specific reporting requirements as defined in the sites Permit(s)
B6: Operational Summary
B7: Operational Data
B8: Performance Form 1
B9: Energy Form 1
B10: Permit Compliance
B11: Improvements
B12: Public Liaison
B13: Residue Quality - Optional
B14: Emissions to Water
B15: Emissions to Air (periodically monitored)
B16: Emissions to Air (continuously monitored)
B17: Hydrogen Chloride emissions
B18: Sulphur Dioxide emissions
B19: Oxides of Nitrogen emissions
B20: Total Organic Carbon emissions
B21: Particulate Matter emissions
B22: Carbon Monoxide emissions
B23: Ammonia emissions
B24: Hydrogen Fluoride emissions
A26: Version Control
A27: Section | B27: Information | H27: Date
A34: Distribution
A35: Copy | B35: Name, Role | H35: No.
A36: 1 | B36: SUEZ - Environment & Industrial Risk Team
A37: 2 | B37: SUEZ - Site Operational Management Team
A38: 3 | B38: Environment Agency
A44: This report is required under the Industrial Emissions Directive’s Article 55(2) requirements on reporting and public information on waste incineration plants and co-incineration plants, which require the operator to produce an annual report on the functioning and monitoring of the plant and make it available to the public.

Sheet Facility Info
A1: =+'Cover Page'!$B$29 -> Annual Performance Report 2020 | E1: =+'Cover Page'!$B$33 -> Cornwall Energy Recovery Centre
A3: Plant Description and Design | K3: Notes:
A5: This non-hazardous waste incinerator operates 24/7 and can process up to 240,000 tonnes of municipal waste and commercial/Industrial waste. The plant has two furnace lines and the heat produced by waste incineration is used to raise superheated steam which generates up to 188,000 MWh/annum of electricity. Activities associated with the incineration are receipt and storage of municipal waste and commercial/industrial waste, production of steam and electricity, abatement of flue gas and handling of Incinerator Bottom Ash (IBA) and Air Pollution Control Residue (APCR). The data included within this report corresponds to the following period: 1st January 2020 to 31st December 2020. | K5: Include summary of plant design, design capacity, no. of combustion lines, electrical and heat capacity and any other general information that descibes the facility, its location and purpose
A20: Summary of Operational Processes and Procedures
A22: Incoming waste is delivered to site by refuse collection trucks. It is weighed in and delivered into the tipping hall. TIPPING HALL - A large tipping hall allows for refuse collection trucks to manoeuvre and tip waste safely. Air needed for combustion is drawn into the furnace from here so that negative pressure is maintained in order to avoid odour and dust escaping the building. BUNKER - Waste vehicles reverse to a wheel stop and tip their loads into a large concrete bunker. Mixing of waste occurs as the cranes driver sorts the waste looking for unsuitable material to be removed, and to improve the homogeneity of the incinerator feedstock. CONTROL ROOM - The plant’s control room centralises the operation of all equipment, including the grab cranes used to mix and load waste into a hopper that feeds the furnace. All on-site functions are monitored automatically and manually. Its systems verify in real time that equipment is functioning properly, continuously monitor the combustion gas, and maximise the efficiency of the entire ERC process. GRATE AND BOILER - Waste is lifted into the charging hoppers by the crane. From here it falls into the furnace-charging chute and then is introduced onto the grate system by hydraulic feeders for incineration. Auxiliary burners can be used to help keeping the temperature above 850°C if required. The thermal energy released from the burning is used to convert water to super-heated steam along a boiler composed of 4 vertical passes. At high pressure, this steam drives a turbine to generate electricity. ELECTRICITY GENERATION - Electricity is generated at 11kv, with an electric production of 188,000 MWh/annum and exporting 150,000 MWh/annum to the national grid. INCINERATOR BOTTOM ASH (IBA) - Ash left on the grate after incineration is carried by conveyor, after quenching, to the IBA processing facility. Up to 65,000 tonne of IBA is processed on site by the removal of ferrous and non-ferrous metal, stabilised and separated into fraction sizes of IBA prior to the export from site of the processed IBA and metals for re-use. AIR-COOLED CONDENSERS - After exiting the turbine, the steam is cooled and condensed back into water through air condensers. This recovered water is treated and reused in the boilers to produce more steam. EMISSION CONTROL - The gases from the furnace are subject to a rigorous cleaning process involving ammonia as selective noncatalytic reduction (SNCR), lime and active carbon injections. This removes oxides of nitrogen, acidic gases, dioxins, and heavy metals from the gas stream. AIR POLLUTION CONTROL RESIDUE (APCR) - The cleaned gas passes through fine-fabric bag filters to remove solid particles before it is emitted through the stack. The resultant APCR residue, or fly-ash, contains particles from the incineration process, lime used in the flue gas treatment, salts and carbon dust. It is stored in a sealed silo until it is taken away for recycling in tankers. EMISSIONS MONITORING - As they pass through the stack, the residual flue gases from the process are continuously monitored before release. This data is relayed automatically to the control room. | K22: Include summary of key processes and procedures such as (but not limited to); waste reception, control rooms, grate, bed and bolier, energy & heat generation, cooling systems, residue management, emission controls, health and safety systems, maintenance

Sheet Operational Data
A1: =+'Cover Page'!$B$29 -> Annual Performance Report 2020 | E1: =+'Cover Page'!$B$33 -> Cornwall Energy Recovery Centre
A3: Operational Data | K3: Notes:
A4: Plant Size | B4: 254000 | D4: tonnes pa | E4: 86 | F4: MWth | G4: 24 | H4: MWe | K4: * - RDF to include SRF
A5: No. of combustion lines | B5: 1 | D5: No. of Turbines: | F5: 1 | K5: ** - CHP plants only
K6: 2020 updates include; heat in MWh, water in Litres, NCV in MJ/kg
A7: Waste types received | B7: Unit | C7: Q1 | D7: Q2 | E7: Q3 | F7: Q4 | G7: Year Total | H7: %
A8: Household / Local Authority | B8: tonnes | C8: 39672 | D8: 37615 | E8: 44143 | F8: 41059 | G8: =SUM(C8:F8) -> 162489 | H8: =IF(G8>0,G8/$G$18,"-") -> 0.6643728918 | K8: Availabiity Definition: 'the availability of a line is to be calculated by the number of hours the line reported Continuously Monitored emission levels to the Regulator through the calendar year divided by the total number of hours in that year. The overall plant availability is calculated as the Mean of all lines in the plant. For clarity this includes periods of Other Than Normal Operating Conditions (OTNOC) and abnormal operation.' Rationale: The primary function of an Energy from Waste facility is the disposal of waste. It follows therefore that the availability of a plant is determined by the period of time a facility spends undertaking this activity.
A9: Commercial & Industrial | C9: 15676 | D9: 19362 | E9: 23249 | F9: 23799 | G9: =SUM(C9:F9) -> 82086 | H9: 0.3356271082
A10: Hazardous | G10: 0 | H10: -
A11: Clinical | G11: 0 | H11: -
A12: Waste wood (biomass) | G12: 0 | H12: -
A13: Refuse Derived Fuel * - H'hold/LA | G13: =SUM(C13:F13) -> 0 | H13: -
A14: Refuse Derived Fuel * - C&I | G14: 0 | H14: -
A15: Other [Please specify] | G15: 0 | H15: -
A16: Other [Please specify]
A17: Other [Please specify]
A18: Total waste received | C18: =SUM(C8:C17) -> 55348 | D18: =SUM(D8:D17) -> 56977 | E18: =SUM(E8:E17) -> 67392 | F18: =SUM(F8:F17) -> 64858 | G18: =SUM(G8:G17) -> 244575 | H18: 1
A19: Rejected Waste | G19: =SUM(C19:F19) -> 0 | H19: =IF(G19>0,G19/$G$18,"-") -> -
A20: Unprocessed waste transferred out | G20: =SUM(C20:F20) -> 0 | H20: =IF(G20>0,G20/$G$18,"-") -> -
A21: Total waste combusted | C21: 50351.46 | D21: 59250.78 | E21: 67126.42 | F21: 60067.33 | G21: =SUM(C21:F21) -> 236795.99 | H21: =IF(G21>0,G21/$G$18,"-") -> 0.9681937647
A23: Energy Useage / Export | B23: Unit | C23: Q1 | D23: Q2 | E23: Q3 | F23: Q4 | G23: Year Total | H23: KWh/te
A24: Power Generated | B24: MWh | C24: 27137 | D24: 43917 | E24: 49183 | F24: 42565 | G24: =SUM(C24:F24) -> 162802 | H24: =IF(G24>0,G24*1000/$G$21,"-") -> 687.5200885
A25: Power Exported | C25: 23699 | D25: 39453 | E25: 43714 | F25: 37695 | G25: =SUM(C25:F25) -> 144561 | H25: =IF(G25>0,G25*1000/$G$21,"-") -> 610.487534
A26: Power Used on site | C26: =(C24-C25)+C27 -> 4096 | D26: =(D24-D25)+D27 -> 4467 | E26: =(E24-E25)+E27 -> 5478 | F26: =(F24-F25)+F27 -> 5193 | G26: =SUM(C26:F26) -> 19234 | H26: =IF(G26>0,G26*1000/$G$21,"-") -> 81.22603765
A27: Power Imported | C27: 658 | D27: 3 | E27: 9 | F27: 323 | G27: 993 | H27: =IF(G27>0,G27*1000/$G$21,"-") -> 4.193483175
A28: Parasitic Load | B28: % | C28: =IF(C24>0,1-C25/(C24+C27),"-") -> 0.1473646339 | D28: =IF(D24>0,1-D25/(D24+D27),"-") -> 0.1017076503 | E28: =IF(E24>0,1-E25/(E24+E27),"-") -> 0.1113595707 | F28: =IF(F24>0,1-F25/(F24+F27),"-") -> 0.1210828204 | G28: =IF(G24>0,1-G25/(G24+G27),"-") -> 0.1174272719
A29: Thermal Energy Produced ** | B29: MWh | G29: =SUM(C29:F29) -> 0 | H29: =IF(G29>0,G29*1000/$G$21,"-") -> -
A30: Thermal Energy Exported ** | G30: 0 | H30: =IF(G30>0,G30*1000/$G$21,"-") -> -
A31: R1 value | C31: 0.79 | G31: Operational
A33: Waste Disposal & Recovery | B33: Unit | C33: Q1 | D33: Q2 | E33: Q3 | F33: Q4 | G33: Year Total | H33: % inputs
A34: APC Residues - produced | B34: tonnes | C34: 1270 | D34: 1317 | E34: 1540 | F34: 1486 | G34: =SUM(C34:F34) -> 5613 | H34: =IF(G34>0,G34/$G$21,"-") -> 0.0237039487
A35: IBA - produced | C35: 12593 | D35: 11130 | E35: 13310 | F35: 10876 | G35: 47909 | H35: =IF(G35>0,G35/$G$21,"-") -> 0.2023218383
A36: Metals recycling | C36: 2347 | D36: 2076 | E36: 2520 | F36: 2152 | G36: =SUM(C36:F36) -> 9095 | H36: 0.0384085896
A37: Other | C37: 0 | D37: 0 | E37: 0 | F37: 0 | G37: =SUM(C37:F37) -> 0 | H37: -
A38: Other | C38: 0 | D38: 0 | E38: 0 | F38: 0 | G38: 0 | H38: -
A39: Other | C39: 0 | D39: 0 | E39: 0 | F39: 0 | G39: 0 | H39: -
A41: Raw Material Usage | B41: Unit | C41: Q1 | D41: Q2 | E41: Q3 | F41: Q4 | G41: Year Total | H41: kg or Ltr /te
A42: Mains Water | B42: ltrs | C42: 4087000 | D42: 4705000 | E42: 5799000 | F42: 5532000 | G42: =SUM(C42:F42) -> 20123000 | H42: =IF(G42>0,G42/$G$21,"-") -> 84.9803242
A43: Other Water | B43: ltrs | G43: 0 | H43: =IF(G43>0,G43/$G$21,"-") -> -
A44: Ammonia | B44: kgs | C44: 26519 | D44: 27197 | E44: 47940 | F44: 43669 | G44: 145325 | H44: 0.61371394
A45: Urea | B45: kgs | G45: =SUM(C45:F45) -> 0 | H45: -
A46: Activated Carbon | B46: kgs | C46: 21397 | D46: 23885 | E46: 30133 | F46: 27492 | G46: 102907 | H46: 0.434580839
A47: Lime / hydrated lime | B47: kgs | C47: 411964 | D47: 516731 | E47: 545121 | F47: 454887 | G47: 1928703 | H47: 8.14499857
A48: Fuel oil | B48: ltrs | C48: 145436 | D48: 29049 | E48: 35456 | F48: 147455 | G48: 357396 | H48: 1.509299207
A49: Gas | B49: cf | C49: 0 | D49: 0 | E49: 0 | F49: 0 | G49: 0
A50: Other | C50: 0 | D50: 0 | E50: 0 | F50: 0 | G50: 0
A52: Summary | B52: Line/Unit | C52: Q1 | D52: Q2 | E52: Q3 | F52: Q4 | G52: Year Total | J52: Hrs in year
A53: Availability of waste combustion by line, hrs | B53: =+B5 -> 1 | C53: 1763 | D53: 2184 | E53: 2195 | F53: 1727 | G53: =SUM(C53:F53) -> 7869 | H53: =G53/J53 -> 0.8982876712 | J53: 8760
B54: 2 | C54: 1817 | D54: 2179 | E54: 2204 | F54: 2160 | G54: 8360 | H54: =G54/J53 -> 0.9543378995
B55: 3 | G55: 0 | H55: x %
B56: 4 | G56: 0 | H56: x %
B57: 5 | G57: =SUM(C57:F57) -> 0 | H57: x %
A58: Overall Availability, mean avg. of all lines, hrs | G58: =AVERAGE(G53:G54) -> 8114.5 | H58: =G58/J53 -> 0.9263127854
A59: Hours of turbine operations, hrs | B59: 1 | C59: 1715 | D59: 2182 | E59: 2203 | F59: 2041 | G59: 8141 | H59: =G59/J53 -> 0.9293378995
A60: Hours of turbine operations, hrs | B60: 2 | G60: 0 | H60: x %
A61: Hours of heat / steam export | G61: 0 | H61: =IF(B61>0,G60/J53,"n/a") -> n/a
A62: Net Calorific Value of waste | B62: MJ/kg | C62: 9.2 | D62: 9.3 | E62: 9 | F62: 8.9 | G62: =AVERAGE(C62:F62) -> 9.1 | H62: -
A63: Abnormal Events | B63: qty. | C63: 0 | D63: 0 | E63: 3 | F63: 2 | G63: 5 | H63: =IF(G63>0,"yes","no") -> yes
A64: Abnormal operation | B64: hours | C64: 0 | D64: 0 | E64: 2 | F64: 1 | G64: 3 | H64: =+(G64)/J53 -> 0.0003424657534
A65: Permit Breaches | B65: qty. | C65: 4 | D65: 9 | E65: 5 | F65: 4 | G65: 22 | H65: =IF(G65>0,"yes","no") -> yes

Sheet Operational Summary
A1: =+'Cover Page'!$B$29 -> Annual Performance Report 2020 | E1: =+'Cover Page'!$B$33 -> Cornwall Energy Recovery Centre
A3: Summary of Plant Operations and Maintenance during the reporting year | K3: Notes:
A5: The annual outage of March 2020 was quickly overshadowed by the Covid pandemic and a national lock down was announced as we were half way through. However we manged to install distancing measures and precautions that allowed us to continue to rebuild the plant and return to service with good reliability. The outage works consisted of the normal grit blasting all internal furnace tubes, thickness testing and NDT. A large program of conveyor overhauls was undertaken and our scaffold contractor recorded 133 separate scaffold assemblies across plant. The roller grate was stripped and inspected and our refractory contractor undertook various repair works across both lines. The balance of the year still under the Covid precautions has been very successful for plant reliability, only being hampered by a premature tube leak in the third quarter. This was repaired and the opportunity to undertake other inspections and repairs was taken to address many other offline tasks. Vinci returned to site to undertake remedial repair works to the roof and will be continuing into 2021. | K5: Include summary of key operational and/or mainteanance activity undertaken in the year, such as any major component upgrades and/or replacements
A29: Summary of Residue Handling for the reporting year
A31: All IBA produced by the incineration process is treated on site at the bottom ash recycling plant operated by Blue Phoenix. The aggregates are separated from the metals with aggregates being sold as a secondary aggregate for use in construction and all metals being recycled. All APCR produced is currently disposed of to hazardous landfill. | K31: Include in here a summary of residue handling regimes and destinations

Sheet Perf. Form 1
A1: =+'Cover Page'!C39 -> 2020 | B1: Annual Reporting Performance Form 1
A3: =+'Cover Page'!B31 -> Permit EPR/GP3433GH | F3: Operator: | G3: SUEZ Recycling and Recovery UK Ltd
A4: Facility: | B4: =+'Cover Page'!B33:I33 -> Cornwall Energy Recovery Centre | F4: Form: | G4: Performance 1
A6: Reporting Period from: | D6: 2020-01-01 | F6: to: | G6: 2020-12-31
A8: =+A1 -> 2020 | B8: Annual Reporting of Waste Disposal and Recovery
A9: Waste Description | C9: Disposal Route(s) | E9: Disposal Tonnes | G9: Recovery Tonnes | I9: % / tonne of waste incinerated
A10: 1) Hazardous Wastes
A11: APC Residues | C11: D05 | E11: 5612.3 | I11: =IF((E11+G11)>0,(E11+G11)/'Operational Data'!$G$21, "-") -> 0.02370099257
A12: IBA | I12: =IF((E12+G12)>0,(E12+G12)/'Operational Data'!$G$21, "-") -> -
I13: =IF((E13+G13)>0,(E13+G13)/'Operational Data'!$G$21, "-") -> -
I14: =IF((E14+G14)>0,(E14+G14)/'Operational Data'!$G$21, "-") -> -
A15: Total Hazardous Waste | E15: =SUM(E11:F14) -> 5612.3 | G15: =SUM(G11:H14) -> 0 | I15: =IF((E15+G15)>0,(E15+G15)/'Operational Data'!$G$21, "-") -> 0.02370099257
A17: 2) Non-Hazardous Wastes
A18: IBA | C18: R10/R13 | G18: 47908.9 | I18: =IF((E18+G18)>0,(E18+G18)/'Operational Data'!$G$21, "-") -> 0.202321416
A19: Ferrous Metal | C19: R04 | G19: 6127.5 | I19: =IF((E19+G19)>0,(E19+G19)/'Operational Data'!$G$21, "-") -> 0.02587670509
A20: Process Water | I20: =IF((E20+G20)>0,(E20+G20)/'Operational Data'!$G$21, "-") -> -
A21: Non-ferrous Metal | C21: R04 | G21: 3026.7 | I21: =IF((E21+G21)>0,(E21+G21)/'Operational Data'!$G$21, "-") -> 0.01278188875
I22: =IF((E22+G22)>0,(E22+G22)/'Operational Data'!$G$21, "-") -> -
A23: Total Non-Hazardous Waste | E23: =SUM(E18:F22) -> 0 | G23: =SUM(G18:H22) -> 57063.1 | I23: =IF((E23+G23)>0,(E23+G23)/'Operational Data'!$G$21, "-") -> 0.2409800098
A24: TOTAL WASTE | E24: =+E23+E15 -> 5612.3 | G24: =+G23+G15 -> 57063.1 | I24: =IF((E24+G24)>0,(E24+G24)/'Operational Data'!$G$21, "-") -> 0.2646810024
A26: Operator’s comments :
A31: =+A1 -> 2020 | B31: Annual Reporting of Water and Other Raw Material Usage
A32: Raw Material | E32: Usage | G32: Unit | H32: Specific Useage | J32: Unit
A33: Mains Water | E33: =+'Operational Data'!G42 -> 20123000 | G33: m3 | H33: =IF(E33>0,E33/'Operational Data'!$G$21,"-") -> 84.9803242 | J33: m3/te
A34: Total Water | E34: =+'Operational Data'!G43+'Operational Data'!G42 -> 20123000 | G34: m3 | H34: =IF(E34>0,E34/'Operational Data'!$G$21,"-") -> 84.9803242 | J34: m3/te
A35: Urea / Ammonia | E35: =+'Operational Data'!G44 -> 145325 | G35: kg | H35: =IF(E35>0,E35/'Operational Data'!$G$21,"-") -> 0.61371394 | J35: kg/te
A36: Activated Carbon | E36: =+'Operational Data'!G46 -> 102907 | G36: kg | H36: =IF(E36>0,E36/'Operational Data'!$G$21,"-") -> 0.434580839 | J36: kg/te
A37: Lime / hydrated lime / Sodium Bicarb. | E37: =+'Operational Data'!G47 -> 1928703 | G37: kg | H37: =IF(E37>0,E37/'Operational Data'!$G$21,"-") -> 8.14499857 | J37: kg/te
A39: Operator’s comments :
A43: =+A31 -> 2020 | B43: Annual Reporting of other performance indicators
A44: Parameter | C44: Results by Line
C45: A1 | D45: A2 | E45: A3 | F45: A4 | G45: A5 | I45: Turbine 1 | J45: Turbine 2
A46: Operating hours for the year, hours | C46: 7869 | D46: 8360 | I46: 8141
A47: Number of periods of abnormal operation, qty. | C47: 3 | D47: 2
A48: Cumulative hours of abnormal operation for this year, hours | C48: 1.5 | D48: 1.5
A50: Operator’s comments :
A54: Signed: | G54: Date: | H54: 2021-01-27

Sheet Energy Form 1
A1: =+'Cover Page'!C39 -> 2020 | B1: Annual Reporting of Energy Usage/Export
A3: =+'Cover Page'!B31 -> Permit EPR/GP3433GH | F3: Operator: | G3: SUEZ Recycling and Recovery UK Ltd
A5: Facility: | B5: =+'Cover Page'!B33:I33 -> Cornwall Energy Recovery Centre | F5: Form: | G5: Energy 1
A7: Reporting Period from: | D7: =+'Perf. Form 1'!D6:E6 -> 2020-01-01 | F7: to: | G7: =+'Perf. Form 1'!G6:H6 -> 2020-12-31
A9: Energy Source | D9: Energy Usage | F9: Unit | G9: Specific Useage (KWh/tonne incinerated
A10: Electricity Produced | D10: =+'Operational Data'!G24 -> 162802 | F10: MWh | G10: =+'Operational Data'!H24 -> 687.5200885
A11: Electricity Imported | D11: =+'Operational Data'!G27 -> 993 | F11: MWh | G11: =+'Operational Data'!H27 -> 4.193483175
A12: Electricity Exported | D12: =+'Operational Data'!G25 -> 144561 | F12: MWh | G12: =+'Operational Data'!H25 -> 610.487534
A13: Gas Oil | D13: =(('Operational Data'!G48/1000)*0.845) -> 301.99962 | F13: tonnes
A14: Steam/hot water exported | D14: =+'Operational Data'!G30 -> 0 | F14: GWh | G14: =+'Operational Data'!H30 -> -
A18: Operator’s comments :
A29: Signed: | G29: Date: | H29: 2021-01-27

Sheet Permit Compliance
A1: =+'Cover Page'!$B$29 -> Annual Performance Report 2020 | E1: =+'Cover Page'!$B$33 -> Cornwall Energy Recovery Centre
A3: Summary of Permit Compliance
A5: Compliance with permit limits for continuously monitored pollutants
A7: The plant met its emission limits as shown in the table below:
A8: Substance | C8: Percentage time compliant during operation | L8: Notes:
C9: Half-hourly limit | F9: Daily limit | L9: Report to 2 decimal places, i.e. xx.xx% Please provide a brief summary of each notification or non-compliance in the table (rather than just referring to notifications that were sent to the Regulator).
A10: Particulates | C10: 1 | F10: 1
A11: Oxides of nitrogen | C11: 1 | F11: 1
A12: Sulphur dioxide | C12: 1 | F12: 1
A13: Carbon monoxide | C13: 0.993 | F13: 1
A14: Total organic carbon | C14: 1 | F14: 1
A15: Hydrogen chloride | C15: 1 | F15: 1
A16: Hydrogen fluoride | C16: 1 | F16: 1
A17: Ammonia | C17: N/A | F17: 1
A19: Summary of any notifications or non-compliances under the permit
A20: Date | B20: Summary of notification or non-compliance [including Line/Reference] | E20: Reason | H20: Measures taken to prevent reoccurrence
A21: 2020-01-24 | B21: 1/2 hourly CO breach on Line 1 | E21: Combustion instability due to waste quality | H21: Operator intervention.
A22: 2020-01-30 | B22: 1/2 hourly CO breach on Line 1 | E22: Gas cylinder discharge on grate - waste quality. | H22: Waste inspections and supplier comms.
A23: 2020-03-12 | B23: 1/2 hourly CO breach on Line 2 | E23: Combustion instability due to waste quality | H23: Operator intervention.
A24: 2020-03-26 | B24: 1/2 hourly CO breach on Line 1 | E24: Combustion instability due to waste quality | H24: Operator intervention.
A25: 2020-06-04 | B25: 1/2 hourly CO breach on Line 2 | E25: Fouling of secondary air nozzles | H25: Inspection & maintenance during next planned outage.
A26: 2020-06-07 | B26: 1/2 hourly CO breach on Line 2 | E26: Fouling of secondary air nozzles | H26: Inspection & maintenance during next planned outage.
A27: 2020-06-08 | B27: 2 x 1/2 hourly CO breaches on Line 2 | E27: Fouling of secondary air nozzles | H27: Inspection & maintenance during next planned outage.
A28: 2020-06-09 | B28: 5 x 1/2 hourly CO breaches on Line 2 | E28: Fouling of secondary air nozzles | H28: Inspection & maintenance during next planned outage.
A29: 2020-07-13 | B29: 1/2 hourly CO breach on Line 2 | E29: Temperature error during pyrometer cleaning. | H29: Cleaning procedure changed.
A30: 2020-07-15 | B30: 1/2 hourly CO breach on Line 2 | E30: Gas cylinder discharge on grate - waste quality. | H30: Waste inspections and supplier comms.
A31: 2020-07-26 | B31: 1/2 hourly CO breach on Line 2 | E31: O2 probe and pyrometer fault. | H31: Equipment replaced.
A32: 2020-08-11 | B32: 1/2 hourly CO breach on Line 2 | E32: Accidental E-stop activation. | H32: Preventative maintenance includes additional checks on E-stops
A33: 2020-08-14 | B33: 1/2 hourly CO breach on Line 2 | E33: Combustion instability due to waste quality | H33: Operator intervention.
A34: 2020-08-22 | B34: Abnormal operation - particulates on Line 2 | E34: Bag filter failure | H34: Isolation of chamber & bag filter replacement
A35: 2020-08-25 | B35: Abnormal operation - particulates on Line 1 | E35: Bag filter failure | H35: Isolation of chamber & bag filter replacement
A36: 2020-09-26 | B36: Abnormal operation - particulates on Line 1 | E36: Bag filter failure | H36: Isolation of chamber & bag filter replacement
A37: 2020-10-02 | B37: 1/2 hourly CO breach on Line 2 | E37: Combustion instability due to waste quality | H37: Operator intervention.
A38: 2020-10-23 | B38: Abnormal operation - loss of CEMS on Line 2 | E38: CEMS Software Issue | H38: Line shutdown until fault rectified by service contractor
A39: 2020-10-30 | B39: 1/2 hourly CO breach on Line 2 | E39: Combustion instability due to waste quality | H39: Operator intervention.
A40: 2020-11-28 | B40: Abnormal operation - particulates on Line 1 | E40: Bag filter failure | H40: Isolation of chamber & bag filter replacement
A41: 2020-12-04 | B41: 1/2 hourly CO breach on Line 1 & 2 | E41: Lightning strike on external grid | H41: N/A
A44: Summary of any complaints received and actions to taken to resolve them.
A45: Date | B45: Summary of complaint [including Line/Reference] | E45: Reason * | H45: Measures taken to prevent reoccurrence
A46: 2020-06-30 | B46: Odour complaint - smell of burning waste, fume like smell | E46: Complaint not upheld, incineration process destroys hydrocarbons. Not substantiated by EA. | H46: Not applicable
A47: 2020-12-17 | B47: Complaint of noise via the helpdesk from MOP. | E47: Helpdesk responded to advise that noise may be slightly increased due to maintenance activities. | H47: Not applicable
E51: * including whether substantiated by the operator or the EA

Sheet Improvements
A1: =+'Cover Page'!$B$29 -> Annual Performance Report 2020 | E1: =+'Cover Page'!$B$33 -> Cornwall Energy Recovery Centre
A3: Summary of Plant Improvements
A5: Summary of any efficiency improvements that have been completed within the year.
A16: Summary of any permit improvement conditions that have been completed within the year and the resulting environmental benefits.
A27: Summary of any changes to the plant or operating techniques which required a variation to the permit and a summary of the resulting environmental impact.
A38: Summary of any other improvements made to the plant or planned to be made and a summary of the resulting environmental benefits.

Sheet Public Liasion
A1: =+'Cover Page'!$B$29 -> Annual Performance Report 2020 | E1: =+'Cover Page'!$B$33 -> Cornwall Energy Recovery Centre
A3: Details of Public & Stakeholder Liasion
A5: Summary of events held during the reporting year.
A6: Date | C6: Description
A7: 2020-05-18 | C7: Community Liaison group vitual meeting scheduled for this date but group preferred a written report. A PDF presentation was sent to all group members covering the normal agenda, Operations, Emmisions monitoring Health and Safety, Visitor update and the St Dennis and Nanpean Trust Fund.
A9: 2020-12-01 | C9: A virtual meeting took place where a presentation from Patrick Daws and Tony Burge was given to Cllr D Cole and Cllr F Greenslade on the need to increase tonnage accepted at the CERC temporarily in relation to the Covid-19 situation and the ongoing roof repairs.
A16: List of events planned for next year
A17: Date | C17: Description
A29: If you wish to be involved in the public liasion programme, please contact _________________

Sheet Residue Quality
A1: =+'Cover Page'!$B$29 -> Annual Performance Report 2020 | E1: =+'Cover Page'!$B$33 -> Cornwall Energy Recovery Centre
A3: Residue Quality Monitoring Requirements
A5: Summary of monitoring undertaken and compliance
A6: Quarterly IBA and APCR samples were taken in accordance with permit requirements. An external laboratory completed all required analysis for permit compliance.
A13: Commentary on any specific events
A14: Date & Event | C14: Description
A15: 2020-08-17 | C15: The Q3 APCR sample was lost in transit to the lab. A subsequent resample was not carried out until Q4 but two samples were taken during Q4 to ensure the requisite number of samples were provided within the calendar year.
A27: Residue Quality Monitoring Results
A28: Parameter (unit) | C28: Limit | D28: Normal Operation
D29: Bottom ash | F29: APC Residues
A30: Loss on Ignition (average %) | C30: <5% | D30: n/a
A31: Total Organic Carbon (average %) | C31: <3% | D31: 1.84
A32: No. of Assessments Undertaken | C32: --- | D32: 4 | F32: 4
A33: No. of Hazardous Results | C33: --- | D33: 0
A35: Comments :

Sheet Water
A1: =+'Cover Page'!$B$29 -> Annual Performance Report 2020 | E1: =+'Cover Page'!$B$33 -> Cornwall Energy Recovery Centre
A3: Emissions to Water
A5: Summary of monitoring undertaken and compliance
A6: Water discharges are covered by a separate Environmental Permit.
A13: Commentary on any specific events
A14: Date & Event | C14: Description
A22: Emissions to Water / Sewer
A23: Parameter | D23: Monitoring Frequency | G23: Limit | H23: Target | I23: Max. | J23: Average

Sheet Air (periodic)
A1: =+'Cover Page'!$B$29 -> Annual Performance Report 2020 | E1: =+'Cover Page'!$B$33 -> Cornwall Energy Recovery Centre
A3: Emissions to Air (periodically monitored)
A5: Summary of monitoring undertaken, standards used and compliance | M5: Notes:
A6: Emissions testing is undertaken by an external contractor on a biannual basis as required by the Environmental Permit. While scheduled testing was delayed by Covid-19, all testing required during 2020 was completed. | M6: Template may require adjustment for any bespoke monitoring requirements of permit.
A9: Results of emissions to air that are periodically monitored
A10: Substance | C10: Ref. Period | D10: Emission Limit Value | F10: Average | M10: User to add additional tables as necessary, depending on whether quarterly or bi-annual reporting is required for the compliance year
F11: A1 | G11: A2 | H11: A3 | I11: A4 | J11: A5
A12: Hydrogen fluoride | C12: 1 hr | D12: 2 mg/m3 | F12: 0.2045 | G12: 0.365
A13: Cd and Th and their compounds | C13: 6-8hrs | D13: 0.05 mg/m3 | F13: 0.0009 | G13: 0.00135
A14: Hg and its compounds | C14: 6-8hrs | D14: 0.05 mg/m3 | F14: 0.00215 | G14: 0.002505
A15: Sb, As, Pb, Cr, Co, Cu, Mn, Ni, V and their compounds | C15: 6-8hrs | D15: 0.5 mg/m3 | F15: 0.118 | G15: 0.055
A16: Dioxins & Furans (I-TEQ) | C16: 6-8hrs | D16: 0.1 ng/m3 | F16: 0.00195 | G16: 0.00092
A17: PCBs (WHO-TEQ Humans / Mammals) | C17: 6-8hrs | D17: None set ng/m3 | F17: 0.000131 | G17: 3.95e-05
A18: PCBs (WHO-TEQ Fish) | C18: 6-8hrs | D18: None set ng/m3 | F18: 7.5e-06 | G18: 2.05e-05
A19: PCBs (WHO-TEQ Birds) | C19: 6-8hrs | D19: None set ng/m3 | F19: 0.0006835 | G19: 0.00034
A20: Dioxins & Furans (WHO-TEQ Humans / Mammals) | C20: 6-8hrs | D20: None set ng/m3 | F20: 0.0018 | G20: 0.00093
A21: Dioxins & Furans (WHO-TEQ Fish) | C21: 6-8hrs | D21: None set ng/m3 | F21: 0.002 | G21: 0.0009
A22: Dioxins & Furans (WHO-TEQ Birds) | C22: 6-8hrs | D22: None set ng/m3 | F22: 0.00365 | G22: 0.001405
A23: Anthanthrene | C23: 6-8hrs | D23: None set µg/m3 | F23: 0.00141 | G23: 0.0012
A24: Benzo(a)anthracene | C24: 6-8hrs | D24: None set µg/m3 | F24: 0.00161 | G24: 0.00075
A25: Benzo(a)pyrene | C25: 6-8hrs | D25: None set µg/m3 | F25: 0.00186 | G25: 0.00165
A26: Benzo(b)fluoranthene | C26: 6-8hrs | D26: None set µg/m3 | F26: 0.00131 | G26: 0.00105
A27: Benzo(b)naptho(2,1-d) thiophene | C27: 6-8hrs | D27: None set µg/m3 | F27: 0.00116 | G27: 0.00075
A28: Benzo(c)phenanthrene | C28: 6-8hrs | D28: None set µg/m3 | F28: 0.00086 | G28: 0.00075
A29: Benzo(ghi)perylene | C29: 6-8hrs | D29: None set µg/m3 | F29: 0.00526 | G29: 0.00575
A30: Benzo(k)fluoranthene | C30: 6-8hrs | D30: None set µg/m3 | F30: 0.00086 | G30: 0.00075
A31: Cholanthrene | C31: 6-8hrs | D31: None set µg/m3 | F31: 0.00086 | G31: 0.00075
A32: Chrysene | C32: 6-8hrs | D32: None set µg/m3 | F32: 0.00371 | G32: 0.0021
A33: Cyclopenta(cd)pyrene | C33: 6-8hrs | D33: None set µg/m3 | F33: 0.003055 | G33: 0.0067
A34: Dibenzo(ai)pyrene | C34: 6-8hrs | D34: None set µg/m3 | F34: 0.00086 | G34: 0.00075
A35: Dibenzo(ah)anthracene | C35: 6-8hrs | D35: None set µg/m3 | F35: 0.00086 | G35: 0.00075
A36: Fluoranthene | C36: 6-8hrs | D36: None set µg/m3 | F36: 0.059595 | G36: 0.03335
A37: Indeno(123-cd) pyrene | C37: 6-8hrs | D37: None set µg/m3 | F37: 0.00161 | G37: 0.00225
A38: Naphthalene | C38: 6-8hrs | D38: None set µg/m3 | F38: 0.239865 | G38: 0.2028
A39: Comments :
A40: Where the laboratory result was reported as a Method Detection Limit, the result has been replaced with a value equal to the MDL. Where dioxins/furans have been reported at the MDL the value has been replaced with a value equal to 0.5 times the MDL as per guidance received from the Environment Agency (Ben Freeman).

Sheet Air (CEMS)
A1: =+'Cover Page'!$B$29 -> Annual Performance Report 2020 | I1: =+'Cover Page'!$B$33 -> Cornwall Energy Recovery Centre
A3: Emissions to Air (continously monitored)
P4: Notes:
A5: Summary of monitoring undertaken, standards used and compliance | P5: Template may require adjustment for any bespoke monitoring requirements of permit
P6: Report to 2 decimal places, i.e. xx.xx%
A11: Results of emissions to air that are continuously monitored (maximum and average values for each line)
A12: Substance | B12: Reference Period | C12: Emission Limit Value | D12: A1 | F12: A2 | H12: A3 | J12: A4 | L12: A5
D13: Max. | E13: Avg. | F13: Max. | G13: Avg. | H13: Max. | I13: Avg. | J13: Max. | K13: Avg. | L13: Max. | M13: Avg.
A14: Oxides of nitrogen | B14: Daily mean | C14: 200 mg/m3 | D14: 149 | E14: 130.9166667 | F14: 150 | G14: 133.1666667
B15: ½ hourly mean | C15: 400 mg/m3 | D15: 459 | E15: 130.9166667 | F15: 165 | G15: 133.1666667
A16: Particulates | B16: Daily mean | C16: 10 mg/m3 | D16: 3 | E16: 0.5583333333 | F16: 2.1 | G16: 0.6416666667
B17: ½ hourly mean | C17: 30 mg/m3 | D17: 71.4 | E17: 0.5583333333 | F17: 39 | G17: 0.6416666667
A18: Total Organic Carbon | B18: Daily mean | C18: 10 mg/m3 | D18: 1 | E18: 0.2833333333 | F18: 1 | G18: 0.01666666667
B19: ½ hourly mean | C19: 20 mg/m3 | D19: 9 | E19: 0.2833333333 | F19: 6 | G19: 0.01666666667
A20: Hydrogen chloride | B20: Daily mean | C20: 10 mg/m3 | D20: 7 | E20: 5.916666667 | F20: 7 | G20: 5.75
B21: ½ hourly mean | C21: 60 mg/m3 | D21: 35 | E21: 5.916666667 | F21: 24 | G21: 5.75
A22: Sulphur dioxide | B22: Daily mean | C22: 50 mg/m3 | D22: 38 | E22: 12.66666667 | F22: 39 | G22: 3.916666667
B23: ½ hourly mean | C23: 200 mg/m3 | D23: 143 | E23: 12.66666667 | F23: 71 | G23: 3.916666667
A24: Carbon monoxide | B24: Daily mean | C24: 50 mg/m3 | D24: 85 | E24: 7.833333333 | F24: 30 | G24: 8.25
B25: ½ hourly mean | C25: 100 mg/m3 | D25: 207 | E25: 7.833333333 | F25: 221 | G25: 8.25
A26: Hydrogen Fluoride | B26: Daily mean | C26: 1 mg/m3 | D26: 1 | E26: 0 | F26: 0 | G26: 0
B27: ½ hourly mean | C27: 4 mg/m3 | D27: 1 | E27: 0 | F27: 1 | G27: 0
A28: Ammonia | B28: Daily mean | C28: 10 mg/m3 | D28: 4.5 | E28: 0.04166666667 | F28: 2 | G28: 0.04166666667
A29: * = delete or amend as appropriate
A30: Comments :

Sheet HCl
A1: =+'Cover Page'!$B$29 -> Annual Performance Report 2020 | E1: =+'Cover Page'!$B$33 -> Cornwall Energy Recovery Centre
A3: Monitoring of Hydrogen Chloride emissions | D3: Whole Installation | G3: See Notes in Cell Q3 | J3: =+A3 -> Monitoring of Hydrogen Chloride emissions | N3: Per Combustion Line | Q3: Notes:
Q4: User to add logic to complete Whole installation, Table A5:G18. From the data in Per Combustion Line, Table J6:O79, subject to No. of lines installed
A5: mg/Nm3 | B5: 1/2 Hourly Reference Periods | E5: Daily Reference Periods
A6: =+'Cover Page'!C39 -> 2020 | B6: 1/2 hourly HCl ELV | C6: Monthly 1/2 hourly mean | D6: Highest 1/2 hourly maximum | E6: Daily HCl ELV | F6: Monthly daily mean | G6: Highest daily maximum | J6: =+A6 -> 2020 | K6: mg/Nm3 | L6: Monthly 1/2 hourly mean | M6: Monthly 1/2 hourly maximum | N6: Monthly daily mean | O6: Monthly daily maximum
A7: Jan | B7: 60 | C7: =AVERAGE(L7,L22) -> 6 | D7: =AVERAGE(M7,M22) -> 11.5 | E7: 10 | F7: =AVERAGE(N7,N22) -> 6 | G7: =AVERAGE(O7,O22) -> 6.5 | J7: A1 | K7: Jan | L7: 6 | M7: 12 | N7: 6 | O7: 6
A8: Feb | B8: 60 | C8: =AVERAGE(L8,L23) -> 5 | D8: 11.5 | E8: 10 | F8: =AVERAGE(N8,N23) -> 5 | G8: 6 | K8: Feb | L8: 6 | M8: 10 | N8: 6 | O8: 6
A9: Mar | B9: 60 | C9: =AVERAGE(L9,L24) -> 5 | D9: 13 | E9: 10 | F9: =AVERAGE(N9,N24) -> 5 | G9: 6 | K9: Mar | L9: 5 | M9: 9 | N9: 5 | O9: 6 | Q9: Whole Installation table A5:G18:
A10: Apr | B10: 60 | C10: =AVERAGE(L10,L25) -> 6 | D10: 10.5 | E10: 10 | F10: =AVERAGE(N10,N25) -> 6 | G10: 6 | K10: Apr | L10: 6 | M10: 10 | N10: 6 | O10: 6 | Q10: Mean: for 1/2 hourly and daily periods calculate mean of values across all operational combustion lines for the month
A11: May | B11: 60 | C11: =AVERAGE(L11,L26) -> 6 | D11: 12.5 | E11: 10 | F11: =AVERAGE(N11,N26) -> 6 | G11: 6 | K11: May | L11: 6 | M11: 11 | N11: 6 | O11: 6
A12: Jun | B12: 60 | C12: =AVERAGE(L12,L27) -> 6 | D12: 11 | E12: 10 | F12: =AVERAGE(N12,N27) -> 6 | G12: 6.5 | K12: Jun | L12: 6 | M12: 11 | N12: 6 | O12: 7
A13: Jul | B13: 60 | C13: =AVERAGE(L13,L28) -> 6 | D13: 12 | E13: 10 | F13: =AVERAGE(N13,N28) -> 6 | G13: 6.5 | K13: Jul | L13: 6 | M13: 11 | N13: 6 | O13: 6 | Q13: Maximum: for 1/2 hourly and daily periods use the highest value across all operational combustion lines for the month
A14: Aug | B14: 60 | C14: =AVERAGE(L14,L29) -> 6 | D14: 12 | E14: 10 | F14: =AVERAGE(N14,N29) -> 6 | G14: 6 | K14: Aug | L14: 6 | M14: 11 | N14: 6 | O14: 6
A15: Sep | B15: 60 | C15: =AVERAGE(L15,L30) -> 6 | D15: 12 | E15: 10 | F15: =AVERAGE(N15,N30) -> 6 | G15: 6 | K15: Sep | L15: 6 | M15: 13 | N15: 6 | O15: 6
A16: Oct | B16: 60 | C16: =AVERAGE(L16,L31) -> 6 | D16: 16 | E16: 10 | F16: =AVERAGE(N16,N31) -> 6 | G16: 6 | K16: Oct | L16: 6 | M16: 14 | N16: 6 | O16: 6
A17: Nov | B17: 60 | C17: =AVERAGE(L17,L32) -> 6 | D17: 14.5 | E17: 10 | F17: =AVERAGE(N17,N32) -> 6 | G17: 6.5 | K17: Nov | L17: 6 | M17: 11 | N17: 6 | O17: 6
A18: Dec | B18: 60 | C18: =AVERAGE(L18,L33) -> 6 | D18: 29.5 | E18: 10 | F18: =AVERAGE(N18,N33) -> 6 | G18: 7 | K18: Dec | L18: 6 | M18: 35 | N18: 6 | O18: 7
K19: Annual | L19: =AVERAGE(L7:L18) -> 5.916666667 | M19: =MAX(M7:M18) -> 35 | N19: =AVERAGE(N7:N18) -> 5.916666667 | O19: =MAX(O7:O18) -> 7
J21: =+A6 -> 2020 | K21: mg/Nm3 | L21: Monthly 1/2 hourly mean | M21: Monthly 1/2 hourly maximum | N21: Monthly daily mean | O21: Monthly daily maximum
J22: A2 | K22: Jan | L22: 6 | M22: 11 | N22: 6 | O22: 7
K23: Feb | L23: 4 | M23: 13 | N23: 4 | O23: 6
K24: Mar | L24: 5 | M24: 17 | N24: 5 | O24: 6
K25: Apr | L25: 6 | M25: 11 | N25: 6 | O25: 6
K26: May | L26: 6 | M26: 14 | N26: 6 | O26: 6
K27: Jun | L27: 6 | M27: 11 | N27: 6 | O27: 6
K28: Jul | L28: 6 | M28: 13 | N28: 6 | O28: 7
K29: Aug | L29: 6 | M29: 13 | N29: 6 | O29: 6
K30: Sep | L30: 6 | M30: 11 | N30: 6 | O30: 6
K31: Oct | L31: 6 | M31: 18 | N31: 6 | O31: 6
K32: Nov | L32: 6 | M32: 18 | N32: 6 | O32: 7
K33: Dec | L33: 6 | M33: 24 | N33: 6 | O33: 7
K34: Annual | L34: =AVERAGE(L22:L33) -> 5.75 | M34: =MAX(M22:M33) -> 24 | N34: =AVERAGE(N22:N33) -> 5.75 | O34: =MAX(O22:O33) -> 7
J36: =+A6 -> 2020 | K36: mg/Nm3 | L36: Monthly 1/2 hourly mean | M36: Monthly 1/2 hourly maximum | N36: Monthly daily mean | O36: Monthly daily maximum
J37: A3 | K37: Jan
K38: Feb
K39: Mar
K40: Apr
K41: May
K42: Jun
K43: Jul
K44: Aug
K45: Sep
K46: Oct
K47: Nov
A48: Comments : | K48: Dec
K49: Annual | L49: =AVERAGE(L37:L48) ->  | M49: =MAX(M37:M48) -> 0 | N49: =AVERAGE(N37:N48) ->  | O49: =MAX(O37:O48) -> 0
J51: =+A6 -> 2020 | K51: mg/Nm3 | L51: Monthly 1/2 hourly mean | M51: Monthly 1/2 hourly maximum | N51: Monthly daily mean | O51: Monthly daily maximum
J52: A4 | K52: Jan
K53: Feb
K54: Mar
K55: Apr
K56: May
K57: Jun
K58: Jul
K59: Aug
K60: Sep
K61: Oct
K62: Nov
K63: Dec
K64: Annual | L64: =AVERAGE(L52:L63) ->  | M64: =MAX(M52:M63) -> 0 | N64: =AVERAGE(N52:N63) ->  | O64: =MAX(O52:O63) -> 0
J66: =+A6 -> 2020 | K66: mg/Nm3 | L66: Monthly 1/2 hourly mean | M66: Monthly 1/2 hourly maximum | N66: Monthly daily mean | O66: Monthly daily maximum
J67: A5 | K67: Jan
K68: Feb
K69: Mar
K70: Apr
K71: May
K72: Jun
K73: Jul
K74: Aug
K75: Sep
K76: Oct
K77: Nov
K78: Dec
K79: Annual | L79: =AVERAGE(L67:L78) ->  | M79: =MAX(M67:M78) -> 0 | N79: =AVERAGE(N67:N78) ->  | O79: =MAX(O67:O78) -> 0

Sheet SO2
A1: =+'Cover Page'!$B$29 -> Annual Performance Report 2020 | E1: =+'Cover Page'!$B$33 -> Cornwall Energy Recovery Centre
A3: Monitoring of Sulphur dioxide emissions | D3: Whole Installation | G3: See Notes in Cell Q3 | J3: =+A3 -> Monitoring of Sulphur dioxide emissions | N3: Per Combustion Line | Q3: Notes:
Q4: User to add logic to complete Whole installation, Table A5:G18. From the data in Per Combustion Line, Table J6:O79, subject to No. of lines installed
A5: mg/Nm3 | B5: 1/2 Hourly Reference Periods | E5: Daily Reference Periods
A6: =+'Cover Page'!C39 -> 2020 | B6: 1/2 hourly SO2 ELV | C6: Monthly 1/2 hourly mean | D6: Highest 1/2 hourly maximum | E6: Daily SO2 ELV | F6: Monthly daily mean | G6: Highest daily maximum | J6: =+A6 -> 2020 | K6: mg/Nm3 | L6: Monthly 1/2 hourly mean | M6: Monthly 1/2 hourly maximum | N6: Monthly daily mean | O6: Monthly daily maximum
A7: Jan | B7: 200 | C7: =AVERAGE(L7,L22) -> 6.5 | D7: =AVERAGE(M7,M22) -> 35.5 | E7: 50 | F7: =AVERAGE(N7,N22) -> 6.5 | G7: =AVERAGE(O7,O22) -> 12.5 | J7: A1 | K7: Jan | L7: 10 | M7: 41 | N7: 10 | O7: 19
A8: Feb | B8: 200 | C8: =AVERAGE(L8,L23) -> 7 | D8: 27 | E8: 50 | F8: =AVERAGE(N8,N23) -> 7 | G8: 14 | K8: Feb | L8: 10 | M8: 25 | N8: 10 | O8: 16
A9: Mar | B9: 200 | C9: =AVERAGE(L9,L24) -> 13 | D9: 52 | E9: 50 | F9: =AVERAGE(N9,N24) -> 13 | G9: 26.5 | K9: Mar | L9: 21 | M9: 68 | N9: 21 | O9: 38 | Q9: Whole Installation table A5:G18:
A10: Apr | B10: 200 | C10: =AVERAGE(L10,L25) -> 17 | D10: 50.5 | E10: 50 | F10: =AVERAGE(N10,N25) -> 17 | G10: 36.5 | K10: Apr | L10: 26 | M10: 54 | N10: 26 | O10: 34 | Q10: Mean: for 1/2 hourly and daily periods calculate mean of values across all operational combustion lines for the month
A11: May | B11: 200 | C11: =AVERAGE(L11,L26) -> 9 | D11: 88 | E11: 50 | F11: =AVERAGE(N11,N26) -> 9 | G11: 16 | K11: May | L11: 16 | M11: 143 | N11: 16 | O11: 25
A12: Jun | B12: 200 | C12: =AVERAGE(L12,L27) -> 5.5 | D12: 50.5 | E12: 50 | F12: =AVERAGE(N12,N27) -> 5.5 | G12: 14 | K12: Jun | L12: 10 | M12: 83 | N12: 10 | O12: 24
A13: Jul | B13: 200 | C13: =AVERAGE(L13,L28) -> 5.5 | D13: 51 | E13: 50 | F13: =AVERAGE(N13,N28) -> 5.5 | G13: 12.5 | K13: Jul | L13: 9 | M13: 57 | N13: 9 | O13: 19 | Q13: Maximum: for 1/2 hourly and daily periods use the highest value across all operational combustion lines for the month
A14: Aug | B14: 200 | C14: =AVERAGE(L14,L29) -> 5 | D14: 27.5 | E14: 50 | F14: =AVERAGE(N14,N29) -> 5 | G14: 6.5 | K14: Aug | L14: 8 | M14: 38 | N14: 8 | O14: 9
A15: Sep | B15: 200 | C15: =AVERAGE(L15,L30) -> 6 | D15: 37.5 | E15: 50 | F15: =AVERAGE(N15,N30) -> 6 | G15: 12.5 | K15: Sep | L15: 9 | M15: 55 | N15: 9 | O15: 20
A16: Oct | B16: 200 | C16: =AVERAGE(L16,L31) -> 6.5 | D16: 33 | E16: 50 | F16: =AVERAGE(N16,N31) -> 6.5 | G16: 9 | K16: Oct | L16: 10 | M16: 41 | N16: 10 | O16: 13
A17: Nov | B17: 200 | C17: =AVERAGE(L17,L32) -> 5.5 | D17: 56.5 | E17: 50 | F17: =AVERAGE(N17,N32) -> 5.5 | G17: 9.5 | K17: Nov | L17: 10 | M17: 42 | N17: 10 | O17: 13
A18: Dec | B18: 200 | C18: =AVERAGE(L18,L33) -> 13 | D18: 88 | E18: 50 | F18: =AVERAGE(N18,N33) -> 13 | G18: 19.5 | K18: Dec | L18: 13 | M18: 109 | N18: 13 | O18: 19
K19: Annual | L19: =AVERAGE(L7:L18) -> 12.66666667 | M19: =MAX(M7:M18) -> 143 | N19: =AVERAGE(N7:N18) -> 12.66666667 | O19: =MAX(O7:O18) -> 38
J21: =+A6 -> 2020 | K21: mg/Nm3 | L21: Monthly 1/2 hourly mean | M21: Monthly 1/2 hourly maximum | N21: Monthly daily mean | O21: Monthly daily maximum
J22: A2 | K22: Jan | L22: 3 | M22: 30 | N22: 3 | O22: 6
K23: Feb | L23: 4 | M23: 29 | N23: 4 | O23: 12
K24: Mar | L24: 5 | M24: 36 | N24: 5 | O24: 15
K25: Apr | L25: 8 | M25: 47 | N25: 8 | O25: 39
K26: May | L26: 2 | M26: 33 | N26: 2 | O26: 7
K27: Jun | L27: 1 | M27: 18 | N27: 1 | O27: 4
K28: Jul | L28: 2 | M28: 45 | N28: 2 | O28: 6
K29: Aug | L29: 2 | M29: 17 | N29: 2 | O29: 4
K30: Sep | L30: 3 | M30: 20 | N30: 3 | O30: 5
K31: Oct | L31: 3 | M31: 25 | N31: 3 | O31: 5
K32: Nov | L32: 1 | M32: 71 | N32: 1 | O32: 6
K33: Dec | L33: 13 | M33: 67 | N33: 13 | O33: 20
K34: Annual | L34: =AVERAGE(L22:L33) -> 3.916666667 | M34: =MAX(M22:M33) -> 71 | N34: =AVERAGE(N22:N33) -> 3.916666667 | O34: =MAX(O22:O33) -> 39
J36: =+A6 -> 2020 | K36: mg/Nm3 | L36: Monthly 1/2 hourly mean | M36: Monthly 1/2 hourly maximum | N36: Monthly daily mean | O36: Monthly daily maximum
J37: A3 | K37: Jan
K38: Feb
K39: Mar
K40: Apr
K41: May
K42: Jun
K43: Jul
K44: Aug
K45: Sep
K46: Oct
K47: Nov
A48: Comments : | K48: Dec
K49: Annual | L49: =AVERAGE(L37:L48) ->  | M49: =MAX(M37:M48) -> 0 | N49: =AVERAGE(N37:N48) ->  | O49: =MAX(O37:O48) -> 0
J51: =+A6 -> 2020 | K51: mg/Nm3 | L51: Monthly 1/2 hourly mean | M51: Monthly 1/2 hourly maximum | N51: Monthly daily mean | O51: Monthly daily maximum
J52: A4 | K52: Jan
K53: Feb
K54: Mar
K55: Apr
K56: May
K57: Jun
K58: Jul
K59: Aug
K60: Sep
K61: Oct
K62: Nov
K63: Dec
K64: Annual | L64: =AVERAGE(L52:L63) ->  | M64: =MAX(M52:M63) -> 0 | N64: =AVERAGE(N52:N63) ->  | O64: =MAX(O52:O63) -> 0
J66: =+A6 -> 2020 | K66: mg/Nm3 | L66: Monthly 1/2 hourly mean | M66: Monthly 1/2 hourly maximum | N66: Monthly daily mean | O66: Monthly daily maximum
J67: A5 | K67: Jan
K68: Feb
K69: Mar
K70: Apr
K71: May
K72: Jun
K73: Jul
K74: Aug
K75: Sep
K76: Oct
K77: Nov
K78: Dec
K79: Annual | L79: =AVERAGE(L67:L78) ->  | M79: =MAX(M67:M78) -> 0 | N79: =AVERAGE(N67:N78) ->  | O79: =MAX(O67:O78) -> 0

Sheet NOx
A1: =+'Cover Page'!$B$29 -> Annual Performance Report 2020 | E1: =+'Cover Page'!$B$33 -> Cornwall Energy Recovery Centre
A3: Monitoring of Oxides of Nitrogen emissions | D3: Whole Installation | G3: See Notes in Cell Q3 | J3: =+A3 -> Monitoring of Oxides of Nitrogen emissions | N3: Per Combustion Line | Q3: Notes:
Q4: User to add logic to complete Whole installation, Table A5:G18. From the data in Per Combustion Line, Table J6:O79, subject to No. of lines installed
A5: mg/Nm3 | B5: 1/2 Hourly Reference Periods | E5: Daily Reference Periods
A6: =+'Cover Page'!C39 -> 2020 | B6: 1/2 hourly NOx ELV | C6: Monthly 1/2 hourly mean | D6: Highest 1/2 hourly maximum | E6: Daily NOx ELV | F6: Monthly daily mean | G6: Highest daily maximum | J6: =+A6 -> 2020 | K6: mg/Nm3 | L6: Monthly 1/2 hourly mean | M6: Monthly 1/2 hourly maximum | N6: Monthly daily mean | O6: Monthly daily maximum
A7: Jan | B7: 400 | C7: =AVERAGE(L7,L22) -> 143 | D7: =AVERAGE(M7,M22) -> 163.5 | E7: 200 | F7: =AVERAGE(N7,N22) -> 143 | G7: =AVERAGE(O7,O22) -> 149 | J7: A1 | K7: Jan | L7: 141 | M7: 162 | N7: 141 | O7: 149
A8: Feb | B8: 400 | C8: =AVERAGE(L8,L23) -> 124 | D8: 151.5 | E8: 200 | F8: =AVERAGE(N8,N23) -> 124 | G8: 139.5 | K8: Feb | L8: 125 | M8: 152 | N8: 125 | O8: 139
A9: Mar | B9: 400 | C9: =AVERAGE(L9,L24) -> 123 | D9: 153 | E9: 200 | F9: =AVERAGE(N9,N24) -> 123 | G9: 135 | K9: Mar | L9: 117 | M9: 147 | N9: 117 | O9: 124 | Q9: Whole Installation table A5:G18:
A10: Apr | B10: 400 | C10: =AVERAGE(L10,L25) -> 111 | D10: 148 | E10: 200 | F10: =AVERAGE(N10,N25) -> 111 | G10: 134 | K10: Apr | L10: 111 | M10: 144 | N10: 111 | O10: 127 | Q10: Mean: for 1/2 hourly and daily periods calculate mean of values across all operational combustion lines for the month
A11: May | B11: 400 | C11: =AVERAGE(L11,L26) -> 109.5 | D11: 134.5 | E11: 200 | F11: =AVERAGE(N11,N26) -> 109.5 | G11: 117 | K11: May | L11: 106 | M11: 133 | N11: 106 | O11: 111
A12: Jun | B12: 400 | C12: =AVERAGE(L12,L27) -> 129.5 | D12: 158.5 | E12: 200 | F12: =AVERAGE(N12,N27) -> 129.5 | G12: 145.5 | K12: Jun | L12: 127 | M12: 157 | N12: 127 | O12: 145
A13: Jul | B13: 400 | C13: =AVERAGE(L13,L28) -> 137.5 | D13: 156.5 | E13: 200 | F13: =AVERAGE(N13,N28) -> 137.5 | G13: 143.5 | K13: Jul | L13: 139 | M13: 157 | N13: 139 | O13: 142 | Q13: Maximum: for 1/2 hourly and daily periods use the highest value across all operational combustion lines for the month
A14: Aug | B14: 400 | C14: =AVERAGE(L14,L29) -> 142 | D14: 165.5 | E14: 200 | F14: =AVERAGE(N14,N29) -> 142 | G14: 148 | K14: Aug | L14: 142 | M14: 171 | N14: 142 | O14: 146
A15: Sep | B15: 400 | C15: =AVERAGE(L15,L30) -> 144.5 | D15: 160.5 | E15: 200 | F15: =AVERAGE(N15,N30) -> 144.5 | G15: 148.5 | K15: Sep | L15: 143 | M15: 162 | N15: 143 | O15: 147
A16: Oct | B16: 400 | C16: =AVERAGE(L16,L31) -> 142 | D16: 157.5 | E16: 200 | F16: =AVERAGE(N16,N31) -> 142 | G16: 147 | K16: Oct | L16: 142 | M16: 156 | N16: 142 | O16: 146
A17: Nov | B17: 400 | C17: =AVERAGE(L17,L32) -> 141 | D17: 309.5 | E17: 200 | F17: =AVERAGE(N17,N32) -> 141 | G17: 144.5 | K17: Nov | L17: 140 | M17: 459 | N17: 140 | O17: 145
A18: Dec | B18: 400 | C18: =AVERAGE(L18,L33) -> 137.5 | D18: 160.5 | E18: 200 | F18: =AVERAGE(N18,N33) -> 137.5 | G18: 145 | K18: Dec | L18: 138 | M18: 158 | N18: 138 | O18: 147
K19: Annual | L19: =AVERAGE(L7:L18) -> 130.9166667 | M19: =MAX(M7:M18) -> 459 | N19: =AVERAGE(N7:N18) -> 130.9166667 | O19: =MAX(O7:O18) -> 149
J21: =+A6 -> 2020 | K21: mg/Nm3 | L21: Monthly 1/2 hourly mean | M21: Monthly 1/2 hourly maximum | N21: Monthly daily mean | O21: Monthly daily maximum
J22: A2 | K22: Jan | L22: 145 | M22: 165 | N22: 145 | O22: 149
K23: Feb | L23: 123 | M23: 151 | N23: 123 | O23: 140
K24: Mar | L24: 129 | M24: 159 | N24: 129 | O24: 146
K25: Apr | L25: 111 | M25: 152 | N25: 111 | O25: 141
K26: May | L26: 113 | M26: 136 | N26: 113 | O26: 123
K27: Jun | L27: 132 | M27: 160 | N27: 132 | O27: 146
K28: Jul | L28: 136 | M28: 156 | N28: 136 | O28: 145
K29: Aug | L29: 142 | M29: 160 | N29: 142 | O29: 150
K30: Sep | L30: 146 | M30: 159 | N30: 146 | O30: 150
K31: Oct | L31: 142 | M31: 159 | N31: 142 | O31: 148
K32: Nov | L32: 142 | M32: 160 | N32: 142 | O32: 144
K33: Dec | L33: 137 | M33: 163 | N33: 137 | O33: 143
K34: Annual | L34: =AVERAGE(L22:L33) -> 133.1666667 | M34: =MAX(M22:M33) -> 165 | N34: =AVERAGE(N22:N33) -> 133.1666667 | O34: =MAX(O22:O33) -> 150
J36: =+A6 -> 2020 | K36: mg/Nm3 | L36: Monthly 1/2 hourly mean | M36: Monthly 1/2 hourly maximum | N36: Monthly daily mean | O36: Monthly daily maximum
J37: A3 | K37: Jan
K38: Feb
K39: Mar
K40: Apr
K41: May
K42: Jun
K43: Jul
K44: Aug
K45: Sep
K46: Oct
K47: Nov
A48: Comments : | K48: Dec
K49: Annual | L49: =AVERAGE(L37:L48) ->  | M49: =MAX(M37:M48) -> 0 | N49: =AVERAGE(N37:N48) ->  | O49: =MAX(O37:O48) -> 0
J51: =+A6 -> 2020 | K51: mg/Nm3 | L51: Monthly 1/2 hourly mean | M51: Monthly 1/2 hourly maximum | N51: Monthly daily mean | O51: Monthly daily maximum
J52: A4 | K52: Jan
K53: Feb
K54: Mar
K55: Apr
K56: May
K57: Jun
K58: Jul
K59: Aug
K60: Sep
K61: Oct
K62: Nov
K63: Dec
K64: Annual | L64: =AVERAGE(L52:L63) ->  | M64: =MAX(M52:M63) -> 0 | N64: =AVERAGE(N52:N63) ->  | O64: =MAX(O52:O63) -> 0
J66: =+A6 -> 2020 | K66: mg/Nm3 | L66: Monthly 1/2 hourly mean | M66: Monthly 1/2 hourly maximum | N66: Monthly daily mean | O66: Monthly daily maximum
J67: A5 | K67: Jan
K68: Feb
K69: Mar
K70: Apr
K71: May
K72: Jun
K73: Jul
K74: Aug
K75: Sep
K76: Oct
K77: Nov
K78: Dec
K79: Annual | L79: =AVERAGE(L67:L78) ->  | M79: =MAX(M67:M78) -> 0 | N79: =AVERAGE(N67:N78) ->  | O79: =MAX(O67:O78) -> 0

Sheet TOC
A1: =+'Cover Page'!$B$29 -> Annual Performance Report 2020 | E1: =+'Cover Page'!$B$33 -> Cornwall Energy Recovery Centre
A3: Monitoring of Total organic carbon emissions | D3: Whole Installation | G3: See Notes in Cell Q3 | J3: =+A3 -> Monitoring of Total organic carbon emissions | N3: Per Combustion Line | Q3: Notes:
Q4: User to add logic to complete Whole installation, Table A5:G18. From the data in Per Combustion Line, Table J6:O79, subject to No. of lines installed
A5: mg/Nm3 | B5: 1/2 Hourly Reference Periods | E5: Daily Reference Periods
A6: =+'Cover Page'!C39 -> 2020 | B6: 1/2 hourly TOC ELV | C6: Monthly 1/2 hourly mean | D6: Highest 1/2 hourly maximum | E6: Daily TOC ELV | F6: Monthly daily mean | G6: Highest daily maximum | J6: =+A6 -> 2020 | K6: mg/Nm3 | L6: Monthly 1/2 hourly mean | M6: Monthly 1/2 hourly maximum | N6: Monthly daily mean | O6: Monthly daily maximum
A7: Jan | B7: 20 | C7: =AVERAGE(L7,L22) -> 0.5 | D7: =AVERAGE(M7,M22) -> 6 | E7: 10 | F7: =AVERAGE(N7,N22) -> 0.5 | G7: =AVERAGE(O7,O22) -> 0.5 | J7: A1 | K7: Jan | L7: 1 | M7: 9 | N7: 1 | O7: 1
A8: Feb | B8: 20 | C8: =AVERAGE(L8,L23) -> 0 | D8: 2 | E8: 10 | F8: =AVERAGE(N8,N23) -> 0 | G8: 1 | K8: Feb | L8: 0 | M8: 1 | N8: 0 | O8: 1
A9: Mar | B9: 20 | C9: =AVERAGE(L9,L24) -> 0 | D9: 2.5 | E9: 10 | F9: =AVERAGE(N9,N24) -> 0 | G9: 0.5 | K9: Mar | L9: 0 | M9: 2 | N9: 0 | O9: 1 | Q9: Whole Installation table A5:G18:
A10: Apr | B10: 20 | C10: =AVERAGE(L10,L25) -> 0.5 | D10: 3 | E10: 10 | F10: =AVERAGE(N10,N25) -> 0.5 | G10: 0.5 | K10: Apr | L10: 1 | M10: 3 | N10: 1 | O10: 1 | Q10: Mean: for 1/2 hourly and daily periods calculate mean of values across all operational combustion lines for the month
A11: May | B11: 20 | C11: =AVERAGE(L11,L26) -> 0.5 | D11: 2.5 | E11: 10 | F11: =AVERAGE(N11,N26) -> 0.5 | G11: 0.5 | K11: May | L11: 1 | M11: 1 | N11: 1 | O11: 1
A12: Jun | B12: 20 | C12: =AVERAGE(L12,L27) -> 0 | D12: 5 | E12: 10 | F12: =AVERAGE(N12,N27) -> 0 | G12: 0.5 | K12: Jun | L12: 0 | M12: 4 | N12: 0 | O12: 1
A13: Jul | B13: 20 | C13: =AVERAGE(L13,L28) -> 0 | D13: 4 | E13: 10 | F13: =AVERAGE(N13,N28) -> 0 | G13: 1 | K13: Jul | L13: 0 | M13: 4 | N13: 0 | O13: 1 | Q13: Maximum: for 1/2 hourly and daily periods use the highest value across all operational combustion lines for the month
A14: Aug | B14: 20 | C14: =AVERAGE(L14,L29) -> 0 | D14: 3.5 | E14: 10 | F14: =AVERAGE(N14,N29) -> 0 | G14: 1 | K14: Aug | L14: 0 | M14: 2 | N14: 0 | O14: 1
A15: Sep | B15: 20 | C15: =AVERAGE(L15,L30) -> 0 | D15: 2 | E15: 10 | F15: =AVERAGE(N15,N30) -> 0 | G15: 0 | K15: Sep | L15: 0 | M15: 2 | N15: 0 | O15: 0
A16: Oct | B16: 20 | C16: =AVERAGE(L16,L31) -> 0 | D16: 2 | E16: 10 | F16: =AVERAGE(N16,N31) -> 0 | G16: 0.5 | K16: Oct | L16: 0 | M16: 1 | N16: 0 | O16: 1
A17: Nov | B17: 20 | C17: =AVERAGE(L17,L32) -> 0.3 | D17: 3.6 | E17: 10 | F17: =AVERAGE(N17,N32) -> 0.3 | G17: 0.45 | K17: Nov | L17: 0.4 | M17: 3.5 | N17: 0.4 | O17: 0.6
A18: Dec | B18: 20 | C18: =AVERAGE(L18,L33) -> 0 | D18: 2.6 | E18: 10 | F18: =AVERAGE(N18,N33) -> 0 | G18: 1 | K18: Dec | L18: 0 | M18: 0.2 | N18: 0 | O18: 1
K19: Annual | L19: =AVERAGE(L7:L18) -> 0.2833333333 | M19: =MAX(M7:M18) -> 9 | N19: =AVERAGE(N7:N18) -> 0.2833333333 | O19: =MAX(O7:O18) -> 1
J21: =+A6 -> 2020 | K21: mg/Nm3 | L21: Monthly 1/2 hourly mean | M21: Monthly 1/2 hourly maximum | N21: Monthly daily mean | O21: Monthly daily maximum
J22: A2 | K22: Jan | L22: 0 | M22: 3 | N22: 0 | O22: 0
K23: Feb | L23: 0 | M23: 3 | N23: 0 | O23: 1
K24: Mar | L24: 0 | M24: 3 | N24: 0 | O24: 0
K25: Apr | L25: 0 | M25: 3 | N25: 0 | O25: 0
K26: May | L26: 0 | M26: 4 | N26: 0 | O26: 0
K27: Jun | L27: 0 | M27: 6 | N27: 0 | O27: 0
K28: Jul | L28: 0 | M28: 4 | N28: 0 | O28: 1
K29: Aug | L29: 0 | M29: 5 | N29: 0 | O29: 1
K30: Sep | L30: 0 | M30: 2 | N30: 0 | O30: 0
K31: Oct | L31: 0 | M31: 3 | N31: 0 | O31: 0
K32: Nov | L32: 0.2 | M32: 3.7 | N32: 0.2 | O32: 0.3
K33: Dec | L33: 0 | M33: 5 | N33: 0 | O33: 1
K34: Annual | L34: =AVERAGE(L22:L33) -> 0.01666666667 | M34: =MAX(M22:M33) -> 6 | N34: =AVERAGE(N22:N33) -> 0.01666666667 | O34: =MAX(O22:O33) -> 1
J36: =+A6 -> 2020 | K36: mg/Nm3 | L36: Monthly 1/2 hourly mean | M36: Monthly 1/2 hourly maximum | N36: Monthly daily mean | O36: Monthly daily maximum
J37: A3 | K37: Jan
K38: Feb
K39: Mar
K40: Apr
K41: May
K42: Jun
K43: Jul
K44: Aug
K45: Sep
K46: Oct
K47: Nov
A48: Comments : | K48: Dec
K49: Annual | L49: =AVERAGE(L37:L48) ->  | M49: =MAX(M37:M48) -> 0 | N49: =AVERAGE(N37:N48) ->  | O49: =MAX(O37:O48) -> 0
J51: =+A6 -> 2020 | K51: mg/Nm3 | L51: Monthly 1/2 hourly mean | M51: Monthly 1/2 hourly maximum | N51: Monthly daily mean | O51: Monthly daily maximum
J52: A4 | K52: Jan
K53: Feb
K54: Mar
K55: Apr
K56: May
K57: Jun
K58: Jul
K59: Aug
K60: Sep
K61: Oct
K62: Nov
K63: Dec
K64: Annual | L64: =AVERAGE(L52:L63) ->  | M64: =MAX(M52:M63) -> 0 | N64: =AVERAGE(N52:N63) ->  | O64: =MAX(O52:O63) -> 0
J66: =+A6 -> 2020 | K66: mg/Nm3 | L66: Monthly 1/2 hourly mean | M66: Monthly 1/2 hourly maximum | N66: Monthly daily mean | O66: Monthly daily maximum
J67: A5 | K67: Jan
K68: Feb
K69: Mar
K70: Apr
K71: May
K72: Jun
K73: Jul
K74: Aug
K75: Sep
K76: Oct
K77: Nov
K78: Dec
K79: Annual | L79: =AVERAGE(L67:L78) ->  | M79: =MAX(M67:M78) -> 0 | N79: =AVERAGE(N67:N78) ->  | O79: =MAX(O67:O78) -> 0

Sheet Particulates
A1: =+'Cover Page'!$B$29 -> Annual Performance Report 2020 | E1: =+'Cover Page'!$B$33 -> Cornwall Energy Recovery Centre
A3: Monitoring of Particulate matter emissions | D3: Whole Installation | G3: See Notes in Cell Q3 | J3: =+A3 -> Monitoring of Particulate matter emissions | N3: Per Combustion Line | Q3: Notes:
Q4: User to add logic to complete Whole installation, Table A5:G18. From the data in Per Combustion Line, Table J6:O79, subject to No. of lines installed
A5: mg/Nm3 | B5: 1/2 Hourly Reference Periods | E5: Daily Reference Periods
A6: =+'Cover Page'!C39 -> 2020 | B6: 1/2 hourly PM ELV | C6: Monthly 1/2 hourly mean | D6: Highest 1/2 hourly maximum | E6: Daily PM ELV | F6: Monthly daily mean | G6: Highest daily maximum | J6: =+A6 -> 2020 | K6: mg/Nm3 | L6: Monthly 1/2 hourly mean | M6: Monthly 1/2 hourly maximum | N6: Monthly daily mean | O6: Monthly daily maximum
A7: Jan | B7: 30 | C7: =AVERAGE(L7,L22) -> 0.5 | D7: =AVERAGE(M7,M22) -> 1.5 | E7: 10 | F7: =AVERAGE(N7,N22) -> 0.5 | G7: =AVERAGE(O7,O22) -> 1 | J7: A1 | K7: Jan | L7: 0 | M7: 1 | N7: 0 | O7: 0
A8: Feb | B8: 30 | C8: =AVERAGE(L8,L23) -> 0.5 | D8: 1.5 | E8: 10 | F8: =AVERAGE(N8,N23) -> 0.5 | G8: 1 | K8: Feb | L8: 0 | M8: 1 | N8: 0 | O8: 0
A9: Mar | B9: 30 | C9: =AVERAGE(L9,L24) -> 0.5 | D9: 2 | E9: 10 | F9: 0.5 | G9: 0.5 | K9: Mar | L9: 0 | M9: 1 | N9: 0 | O9: 0 | Q9: Whole Installation table A5:G18:
A10: Apr | B10: 30 | C10: =AVERAGE(L10,L25) -> 0.5 | D10: 0.5 | E10: 10 | F10: 0.5 | G10: 0.5 | K10: Apr | L10: 0 | M10: 0 | N10: 0 | O10: 0 | Q10: Mean: for 1/2 hourly and daily periods calculate mean of values across all operational combustion lines for the month
A11: May | B11: 30 | C11: =AVERAGE(L11,L26) -> 0.5 | D11: 1 | E11: 10 | F11: 0.5 | G11: 0.5 | K11: May | L11: 0 | M11: 1 | N11: 0 | O11: 0
A12: Jun | B12: 30 | C12: =AVERAGE(L12,L27) -> 0.5 | D12: 14 | E12: 10 | F12: 0.5 | G12: 2 | K12: Jun | L12: 1 | M12: 26 | N12: 1 | O12: 3
A13: Jul | B13: 30 | C13: =AVERAGE(L13,L28) -> 0.5 | D13: 0.5 | E13: 10 | F13: 0.5 | G13: 0.5 | K13: Jul | L13: 1 | M13: 1 | N13: 1 | O13: 1 | Q13: Maximum: for 1/2 hourly and daily periods use the highest value across all operational combustion lines for the month
A14: Aug | B14: 30 | C14: =AVERAGE(L14,L29) -> 0.5 | D14: 44 | E14: 10 | F14: 0.5 | G14: 2 | K14: Aug | L14: 1 | M14: 49 | N14: 1 | O14: 2
A15: Sep | B15: 30 | C15: =AVERAGE(L15,L30) -> 0.5 | D15: 18 | E15: 10 | F15: 0.5 | G15: 1 | K15: Sep | L15: 1 | M15: 35 | N15: 1 | O15: 2
A16: Oct | B16: 30 | C16: =AVERAGE(L16,L31) -> 1 | D16: 1 | E16: 10 | F16: 1 | G16: 1 | K16: Oct | L16: 1 | M16: 1 | N16: 1 | O16: 1
A17: Nov | B17: 30 | C17: =AVERAGE(L17,L32) -> 0.7 | D17: 48.5 | E17: 10 | F17: 0.7 | G17: 2.55 | K17: Nov | L17: 0.7 | M17: 71.4 | N17: 0.7 | O17: 3
A18: Dec | B18: 30 | C18: =AVERAGE(L18,L33) -> 1 | D18: 11 | E18: 10 | F18: 1 | G18: 1 | K18: Dec | L18: 1 | M18: 18 | N18: 1 | O18: 1
K19: Annual | L19: =AVERAGE(L7:L18) -> 0.5583333333 | M19: =MAX(M7:M18) -> 71.4 | N19: =AVERAGE(N7:N18) -> 0.5583333333 | O19: =MAX(O7:O18) -> 3
J21: =+A6 -> 2020 | K21: mg/Nm3 | L21: Monthly 1/2 hourly mean | M21: Monthly 1/2 hourly maximum | N21: Monthly daily mean | O21: Monthly daily maximum
J22: A2 | K22: Jan | L22: 1 | M22: 2 | N22: 1 | O22: 2
K23: Feb | L23: 1 | M23: 2 | N23: 1 | O23: 2
K24: Mar | L24: 1 | M24: 3 | N24: 1 | O24: 1
K25: Apr | L25: 1 | M25: 1 | N25: 1 | O25: 1
K26: May | L26: 1 | M26: 1 | N26: 1 | O26: 1
K27: Jun | L27: 0 | M27: 2 | N27: 0 | O27: 1
K28: Jul | L28: 0 | M28: 0 | N28: 0 | O28: 0
K29: Aug | L29: 0 | M29: 39 | N29: 0 | O29: 2
K30: Sep | L30: 0 | M30: 1 | N30: 0 | O30: 0
K31: Oct | L31: 1 | M31: 1 | N31: 1 | O31: 1
K32: Nov | L32: 0.7 | M32: 25.6 | N32: 0.7 | O32: 2.1
K33: Dec | L33: 1 | M33: 4 | N33: 1 | O33: 1
K34: Annual | L34: =AVERAGE(L22:L33) -> 0.6416666667 | M34: =MAX(M22:M33) -> 39 | N34: =AVERAGE(N22:N33) -> 0.6416666667 | O34: =MAX(O22:O33) -> 2.1
J36: =+A6 -> 2020 | K36: mg/Nm3 | L36: Monthly 1/2 hourly mean | M36: Monthly 1/2 hourly maximum | N36: Monthly daily mean | O36: Monthly daily maximum
J37: A3 | K37: Jan
K38: Feb
K39: Mar
K40: Apr
K41: May
K42: Jun
K43: Jul
K44: Aug
K45: Sep
K46: Oct
K47: Nov
A48: Comments : | K48: Dec
K49: Annual | L49: =AVERAGE(L37:L48) ->  | M49: =MAX(M37:M48) -> 0 | N49: =AVERAGE(N37:N48) ->  | O49: =MAX(O37:O48) -> 0
J51: =+A6 -> 2020 | K51: mg/Nm3 | L51: Monthly 1/2 hourly mean | M51: Monthly 1/2 hourly maximum | N51: Monthly daily mean | O51: Monthly daily maximum
J52: A4 | K52: Jan
K53: Feb
K54: Mar
K55: Apr
K56: May
K57: Jun
K58: Jul
K59: Aug
K60: Sep
K61: Oct
K62: Nov
K63: Dec
K64: Annual | L64: =AVERAGE(L52:L63) ->  | M64: =MAX(M52:M63) -> 0 | N64: =AVERAGE(N52:N63) ->  | O64: =MAX(O52:O63) -> 0
J66: =+A6 -> 2020 | K66: mg/Nm3 | L66: Monthly 1/2 hourly mean | M66: Monthly 1/2 hourly maximum | N66: Monthly daily mean | O66: Monthly daily maximum
J67: A5 | K67: Jan
K68: Feb
K69: Mar
K70: Apr
K71: May
K72: Jun
K73: Jul
K74: Aug
K75: Sep
K76: Oct
K77: Nov
K78: Dec
K79: Annual | L79: =AVERAGE(L67:L78) ->  | M79: =MAX(M67:M78) -> 0 | N79: =AVERAGE(N67:N78) ->  | O79: =MAX(O67:O78) -> 0

Sheet CO 0.5hourly
A1: =+'Cover Page'!$B$29 -> Annual Performance Report 2020 | E1: =+'Cover Page'!$B$33 -> Cornwall Energy Recovery Centre
A3: Monitoring of Carbon Monoxide (half hourly) | D3: Whole Installation | G3: See Notes in Cell Q3 | J3: =+A3 -> Monitoring of Carbon Monoxide (half hourly) | N3: Per Combustion Line | Q3: Notes:
Q4: User to add logic to complete Whole installation, Table A5:G18. From the data in Per Combustion Line, Table J6:O79, subject to No. of lines installed
A5: mg/Nm3 | B5: 1/2 Hourly Reference Periods | E5: Daily Reference Periods
A6: =+'Cover Page'!C39 -> 2020 | B6: 1/2 hourly CO ELV | C6: Monthly 1/2 hourly mean | D6: Highest 1/2 hourly maximum | E6: Daily CO ELV | F6: Monthly daily mean | G6: Highest daily maximum | J6: =+A6 -> 2020 | K6: mg/Nm3 | L6: Monthly 1/2 hourly mean | M6: Monthly 1/2 hourly maximum | N6: Monthly daily mean | O6: Monthly daily maximum
A7: Jan | B7: 100 | C7: =AVERAGE(L7,L22) -> 12.5 | D7: =AVERAGE(M7,M22) -> 118.5 | E7: 50 | F7: =AVERAGE(N7,N22) -> 12.5 | G7: =AVERAGE(O7,O22) -> 17 | J7: A1 | K7: Jan | L7: 12 | M7: 169 | N7: 12 | O7: 18
A8: Feb | B8: =+B7 -> 100 | C8: =AVERAGE(L8,L23) -> 10.5 | D8: 88.5 | E8: =+E7 -> 50 | F8: =AVERAGE(N8,N23) -> 10.5 | G8: 16 | K8: Feb | L8: 10 | M8: 80 | N8: 10 | O8: 15
A9: Mar | B9: =+B8 -> 100 | C9: 12.5 | D9: 114 | E9: =+E8 -> 50 | F9: 12.5 | G9: 30.5 | K9: Mar | L9: 13 | M9: 120 | N9: 13 | O9: 38 | Q9: Whole Installation table A5:G18:
A10: Apr | B10: 100 | C10: 6.5 | D10: 72.5 | E10: 50 | F10: 6.5 | G10: 11 | K10: Apr | L10: 6 | M10: 80 | N10: 6 | O10: 9 | Q10: Mean: for 1/2 hourly and daily periods calculate mean of values across all operational combustion lines for the month
A11: May | B11: 100 | C11: 4.5 | D11: 91.5 | E11: 50 | F11: 4.5 | G11: 8 | K11: May | L11: 5 | M11: 69 | N11: 5 | O11: 7
A12: Jun | B12: 100 | C12: 7.5 | D12: 119 | E12: 50 | F12: 7.5 | G12: 19.5 | K12: Jun | L12: 6 | M12: 87 | N12: 6 | O12: 9
A13: Jul | B13: 100 | C13: 6.5 | D13: 103 | E13: 50 | F13: 6.5 | G13: 11 | K13: Jul | L13: 7 | M13: 78 | N13: 7 | O13: 11 | Q13: Maximum: for 1/2 hourly and daily periods use the highest value across all operational combustion lines for the month
A14: Aug | B14: 100 | C14: 7 | D14: 104 | E14: 50 | F14: 7 | G14: 11 | K14: Aug | L14: 7 | M14: 92 | N14: 7 | O14: 9
A15: Sep | B15: 100 | C15: 6.5 | D15: 73.5 | E15: 50 | F15: 6.5 | G15: 11 | K15: Sep | L15: 7 | M15: 70 | N15: 7 | O15: 12
A16: Oct | B16: 100 | C16: 8 | D16: 88.5 | E16: 50 | F16: 8 | G16: 13 | K16: Oct | L16: 7 | M16: 27 | N16: 7 | O16: 10
A17: Nov | B17: 100 | C17: 10.5 | D17: 79 | E17: 50 | F17: 10.5 | G17: 50.5 | K17: Nov | L17: 11 | M17: 85 | N17: 11 | O17: 85
A18: Dec | B18: 100 | C18: 4 | D18: 214 | E18: 50 | F18: 4 | G18: 9.5 | K18: Dec | L18: 3 | M18: 207 | N18: 3 | O18: 7
K19: Annual | L19: =AVERAGE(L7:L18) -> 7.833333333 | M19: =MAX(M7:M18) -> 207 | N19: =AVERAGE(N7:N18) -> 7.833333333 | O19: =MAX(O7:O18) -> 85
J21: =+A6 -> 2020 | K21: mg/Nm3 | L21: Monthly 1/2 hourly mean | M21: Monthly 1/2 hourly maximum | N21: Monthly daily mean | O21: Monthly daily maximum
J22: A2 | K22: Jan | L22: 13 | M22: 68 | N22: 13 | O22: 16
K23: Feb | L23: 11 | M23: 97 | N23: 11 | O23: 17
K24: Mar | L24: 12 | M24: 108 | N24: 12 | O24: 23
K25: Apr | L25: 7 | M25: 65 | N25: 7 | O25: 13
K26: May | L26: 4 | M26: 114 | N26: 4 | O26: 9
K27: Jun | L27: 9 | M27: 151 | N27: 9 | O27: 30
K28: Jul | L28: 6 | M28: 128 | N28: 6 | O28: 11
K29: Aug | L29: 7 | M29: 116 | N29: 7 | O29: 13
K30: Sep | L30: 6 | M30: 77 | N30: 6 | O30: 10
K31: Oct | L31: 9 | M31: 150 | N31: 9 | O31: 16
K32: Nov | L32: 10 | M32: 73 | N32: 10 | O32: 16
K33: Dec | L33: 5 | M33: 221 | N33: 5 | O33: 12
K34: Annual | L34: =AVERAGE(L22:L33) -> 8.25 | M34: =MAX(M22:M33) -> 221 | N34: =AVERAGE(N22:N33) -> 8.25 | O34: =MAX(O22:O33) -> 30
J36: =+A6 -> 2020 | K36: mg/Nm3 | L36: Monthly 1/2 hourly mean | M36: Monthly 1/2 hourly maximum | N36: Monthly daily mean | O36: Monthly daily maximum
J37: A3 | K37: Jan
K38: Feb
K39: Mar
K40: Apr
K41: May
K42: Jun
K43: Jul
K44: Aug
K45: Sep
K46: Oct
K47: Nov
A48: Comments : | K48: Dec
K49: Annual | L49: =AVERAGE(L37:L48) ->  | M49: =MAX(M37:M48) -> 0 | N49: =AVERAGE(N37:N48) ->  | O49: =MAX(O37:O48) -> 0
J51: =+A6 -> 2020 | K51: mg/Nm3 | L51: Monthly 1/2 hourly mean | M51: Monthly 1/2 hourly maximum | N51: Monthly daily mean | O51: Monthly daily maximum
J52: A4 | K52: Jan
K53: Feb
K54: Mar
K55: Apr
K56: May
K57: Jun
K58: Jul
K59: Aug
K60: Sep
K61: Oct
K62: Nov
K63: Dec
K64: Annual | L64: =AVERAGE(L52:L63) ->  | M64: =MAX(M52:M63) -> 0 | N64: =AVERAGE(N52:N63) ->  | O64: =MAX(O52:O63) -> 0
J66: =+A6 -> 2020 | K66: mg/Nm3 | L66: Monthly 1/2 hourly mean | M66: Monthly 1/2 hourly maximum | N66: Monthly daily mean | O66: Monthly daily maximum
J67: A5 | K67: Jan
K68: Feb
K69: Mar
K70: Apr
K71: May
K72: Jun
K73: Jul
K74: Aug
K75: Sep
K76: Oct
K77: Nov
K78: Dec
K79: Annual | L79: =AVERAGE(L67:L78) ->  | M79: =MAX(M67:M78) -> 0 | N79: =AVERAGE(N67:N78) ->  | O79: =MAX(O67:O78) -> 0

Sheet NH3
A1: =+'Cover Page'!$B$29 -> Annual Performance Report 2020 | E1: =+'Cover Page'!$B$33 -> Cornwall Energy Recovery Centre
A3: Monitoring of Ammnonia emissions | D3: Whole Installation | G3: See Notes in Cell Q3 | J3: =+A3 -> Monitoring of Ammnonia emissions | N3: Per Combustion Line | Q3: Notes:
Q4: User to add logic to complete Whole installation, Table A5:G18. From the data in Per Combustion Line, Table J6:O79, subject to No. of lines installed
A5: mg/Nm3 | B5: 1/2 Hourly Reference Periods | E5: Daily Reference Periods
A6: =+'Cover Page'!C39 -> 2020 | B6: 1/2 hourly NH3 ELV | C6: Monthly 1/2 hourly mean | D6: Highest 1/2 hourly maximum | E6: Daily NH3 ELV | F6: Monthly daily mean | G6: Highest daily maximum | J6: =+A6 -> 2020 | K6: mg/Nm3 | L6: Monthly 1/2 hourly mean | M6: Monthly 1/2 hourly maximum | N6: Monthly daily mean | O6: Monthly daily maximum
A7: Jan | B7: 0 | C7: =AVERAGE(L7,L22) -> 0 | D7: =AVERAGE(M7,M22) -> 2.5 | E7: 10 | F7: =AVERAGE(N7,N22) -> 0 | G7: =AVERAGE(O7,O22) -> 0.5 | J7: A1 | K7: Jan | L7: 0 | M7: 4 | N7: 0 | O7: 1
A8: Feb | B8: =+B7 -> 0 | C8: 0 | D8: 1.5 | E8: =+E7 -> 10 | F8: =AVERAGE(N8,N23) -> 0 | G8: 0.5 | K8: Feb | L8: 0 | M8: 1 | N8: 0 | O8: 0
A9: Mar | B9: =+B8 -> 0 | C9: 0 | D9: 3 | E9: =+E8 -> 10 | F9: 0 | G9: 1 | K9: Mar | L9: 0 | M9: 4 | N9: 0 | O9: 1 | Q9: Whole Installation table A5:G18:
A10: Apr | B10: 0 | C10: 0 | D10: 0.5 | E10: 10 | F10: 0 | G10: 0 | K10: Apr | L10: 0 | M10: 0 | N10: 0 | O10: 0 | Q10: Mean: for 1/2 hourly and daily periods calculate mean of values across all operational combustion lines for the month
A11: May | B11: 0 | C11: 0 | D11: 1 | E11: 10 | F11: 0 | G11: 0 | K11: May | L11: 0 | M11: 1 | N11: 0 | O11: 0
A12: Jun | B12: 0 | C12: 0 | D12: 2.5 | E12: 10 | F12: 0 | G12: 0.5 | K12: Jun | L12: 0 | M12: 1 | N12: 0 | O12: 0
A13: Jul | B13: 0 | C13: 0 | D13: 3.5 | E13: 10 | F13: 0 | G13: 1.5 | K13: Jul | L13: 0 | M13: 2 | N13: 0 | O13: 1 | Q13: Maximum: for 1/2 hourly and daily periods use the highest value across all operational combustion lines for the month
A14: Aug | B14: 0 | C14: 0 | D14: 1 | E14: 10 | F14: 0 | G14: 1 | K14: Aug | L14: 0 | M14: 1 | N14: 0 | O14: 1
A15: Sep | B15: 0 | C15: 0 | D15: 2.5 | E15: 10 | F15: 0 | G15: 1 | K15: Sep | L15: 0 | M15: 4 | N15: 0 | O15: 1
A16: Oct | B16: 0 | C16: 0 | D16: 5 | E16: 10 | F16: 0 | G16: 1 | K16: Oct | L16: 0 | M16: 1 | N16: 0 | O16: 1
A17: Nov | B17: 0 | C17: 0.5 | D17: 6.95 | E17: 10 | F17: 0.5 | G17: 2.7 | K17: Nov | L17: 0.5 | M17: 6.5 | N17: 0.5 | O17: 4.5
A18: Dec | B18: 0 | C18: 0 | D18: 4 | E18: 10 | F18: 0 | G18: 1 | K18: Dec | L18: 0 | M18: 1 | N18: 0 | O18: 1
K19: Annual | L19: =AVERAGE(L7:L18) -> 0.04166666667 | M19: =MAX(M7:M18) -> 6.5 | N19: =AVERAGE(N7:N18) -> 0.04166666667 | O19: =MAX(O7:O18) -> 4.5
J21: =+A6 -> 2020 | K21: mg/Nm3 | L21: Monthly 1/2 hourly mean | M21: Monthly 1/2 hourly maximum | N21: Monthly daily mean | O21: Monthly daily maximum
J22: A2 | K22: Jan | L22: 0 | M22: 1 | N22: 0 | O22: 0
K23: Feb | L23: 0 | M23: 2 | N23: 0 | O23: 1
K24: Mar | L24: 0 | M24: 2 | N24: 0 | O24: 1
K25: Apr | L25: 0 | M25: 1 | N25: 0 | O25: 0
K26: May | L26: 0 | M26: 1 | N26: 0 | O26: 0
K27: Jun | L27: 0 | M27: 4 | N27: 0 | O27: 1
K28: Jul | L28: 0 | M28: 5 | N28: 0 | O28: 2
K29: Aug | L29: 0 | M29: 1 | N29: 0 | O29: 1
K30: Sep | L30: 0 | M30: 1 | N30: 0 | O30: 1
K31: Oct | L31: 0 | M31: 9 | N31: 0 | O31: 1
K32: Nov | L32: 0.5 | M32: 7.4 | N32: 0.5 | O32: 0.9
K33: Dec | L33: 0 | M33: 7 | N33: 0 | O33: 1
K34: Annual | L34: =AVERAGE(L22:L33) -> 0.04166666667 | M34: =MAX(M22:M33) -> 9 | N34: =AVERAGE(N22:N33) -> 0.04166666667 | O34: =MAX(O22:O33) -> 2
J36: =+A6 -> 2020 | K36: mg/Nm3 | L36: Monthly 1/2 hourly mean | M36: Monthly 1/2 hourly maximum | N36: Monthly daily mean | O36: Monthly daily maximum
J37: A3 | K37: Jan
K38: Feb
K39: Mar
K40: Apr
K41: May
K42: Jun
K43: Jul
K44: Aug
K45: Sep
K46: Oct
K47: Nov
A48: Comments : | K48: Dec
A49: An indicated ELV value of zero in the table above means that no ammonia limit is set in the permit. | K49: Annual | L49: =AVERAGE(L37:L48) ->  | M49: =MAX(M37:M48) -> 0 | N49: =AVERAGE(N37:N48) ->  | O49: =MAX(O37:O48) -> 0
J51: =+A6 -> 2020 | K51: mg/Nm3 | L51: Monthly 1/2 hourly mean | M51: Monthly 1/2 hourly maximum | N51: Monthly daily mean | O51: Monthly daily maximum
J52: A4 | K52: Jan
K53: Feb
K54: Mar
K55: Apr
K56: May
K57: Jun
K58: Jul
K59: Aug
K60: Sep
K61: Oct
K62: Nov
K63: Dec
K64: Annual | L64: =AVERAGE(L52:L63) ->  | M64: =MAX(M52:M63) -> 0 | N64: =AVERAGE(N52:N63) ->  | O64: =MAX(O52:O63) -> 0
J66: =+A6 -> 2020 | K66: mg/Nm3 | L66: Monthly 1/2 hourly mean | M66: Monthly 1/2 hourly maximum | N66: Monthly daily mean | O66: Monthly daily maximum
J67: A5 | K67: Jan
K68: Feb
K69: Mar
K70: Apr
K71: May
K72: Jun
K73: Jul
K74: Aug
K75: Sep
K76: Oct
K77: Nov
K78: Dec
K79: Annual | L79: =AVERAGE(L67:L78) ->  | M79: =MAX(M67:M78) -> 0 | N79: =AVERAGE(N67:N78) ->  | O79: =MAX(O67:O78) -> 0

Sheet HF
A1: =+'[1]Cover Page'!$B$29 -> Annual Performance Report 2020 | E1: =+'[1]Cover Page'!$B$33 -> Cornwall Energy Recovery Centre
A3: Monitoring of Hydrogen Fluoride emissions | D3: Whole Installation | G3: See Notes in Cell Q3 | J3: =+A3 -> Monitoring of Hydrogen Fluoride emissions | N3: Per Combustion Line | Q3: Notes:
Q4: User to add logic to complete Whole installation, Table A5:G18. From the data in Per Combustion Line, Table J6:O79, subject to No. of lines installed
A5: mg/Nm3 | B5: 1/2 Hourly Reference Periods | E5: Daily Reference Periods
A6: =+'[1]Cover Page'!C39 -> 2020 | B6: 1/2 hourly HF ELV | C6: Monthly 1/2 hourly mean | D6: Highest 1/2 hourly maximum | E6: Daily HF ELV | F6: Monthly daily mean | G6: Highest daily maximum | J6: =+A6 -> 2020 | K6: mg/Nm3 | L6: Monthly 1/2 hourly mean | M6: Monthly 1/2 hourly maximum | N6: Monthly daily mean | O6: Monthly daily maximum
A7: Jan | B7: 4 | C7: =AVERAGE(L7,L22) -> 0 | D7: =AVERAGE(M7,M22) -> 0.5 | E7: 1 | F7: =AVERAGE(N7,N22) -> 0 | G7: =AVERAGE(O7,O22) -> 0.5 | J7: A1 | K7: Jan | L7: 0 | M7: 1 | N7: 0 | O7: 1
A8: Feb | B8: 4 | C8: =AVERAGE(L8,L23) -> 0 | D8: 0.5 | E8: =+E7 -> 1 | F8: =AVERAGE(N8,N23) -> 0 | G8: 0.5 | K8: Feb | L8: 0 | M8: 1 | N8: 0 | O8: 1
A9: Mar | B9: 4 | C9: 0 | D9: 1 | E9: =+E8 -> 1 | F9: 0 | G9: 0 | K9: Mar | L9: 0 | M9: 1 | N9: 0 | O9: 0 | Q9: Whole Installation table A5:G18:
A10: Apr | B10: 4 | C10: 0 | D10: 0 | E10: 1 | F10: 0 | G10: 0 | K10: Apr | L10: 0 | M10: 0 | N10: 0 | O10: 0 | Q10: Mean: for 1/2 hourly and daily periods calculate mean of values across all operational combustion lines for the month
A11: May | B11: 4 | C11: 0 | D11: 0.5 | E11: 1 | F11: 0 | G11: 0 | K11: May | L11: 0 | M11: 1 | N11: 0 | O11: 0
A12: Jun | B12: 4 | C12: 0 | D12: 1 | E12: 1 | F12: 0 | G12: 0 | K12: Jun | L12: 0 | M12: 1 | N12: 0 | O12: 0
A13: Jul | B13: 4 | C13: 0 | D13: 0 | E13: 1 | F13: 0 | G13: 0 | K13: Jul | L13: 0 | M13: 0 | N13: 0 | O13: 0 | Q13: Maximum: for 1/2 hourly and daily periods use the highest value across all operational combustion lines for the month
A14: Aug | B14: 4 | C14: 0 | D14: 0 | E14: 1 | F14: 0 | G14: 0 | K14: Aug | L14: 0 | M14: 0 | N14: 0 | O14: 0
A15: Sep | B15: 4 | C15: 0 | D15: 0 | E15: 1 | F15: 0 | G15: 0 | K15: Sep | L15: 0 | M15: 0 | N15: 0 | O15: 0
A16: Oct | B16: 4 | C16: 0 | D16: 0 | E16: 1 | F16: 0 | G16: 0 | K16: Oct | L16: 0 | M16: 0 | N16: 0 | O16: 0
A17: Nov | B17: 4 | C17: 0 | D17: 0.05 | E17: 1 | F17: 0 | G17: 0 | K17: Nov | L17: 0 | M17: 0.1 | N17: 0 | O17: 0
A18: Dec | B18: =+B17 -> 4 | C18: 0 | D18: 0 | E18: 1 | F18: 0 | G18: 0 | K18: Dec | L18: 0 | M18: 0 | N18: 0 | O18: 0
K19: Annual | L19: =AVERAGE(L7:L18) -> 0 | M19: =MAX(M7:M18) -> 1 | N19: =AVERAGE(N7:N18) -> 0 | O19: =MAX(O7:O18) -> 1
J21: =+A6 -> 2020 | K21: mg/Nm3 | L21: Monthly 1/2 hourly mean | M21: Monthly 1/2 hourly maximum | N21: Monthly daily mean | O21: Monthly daily maximum
J22: A2 | K22: Jan | L22: 0 | M22: 0 | N22: 0 | O22: 0
K23: Feb | L23: 0 | M23: 0 | N23: 0 | O23: 0
K24: Mar | L24: 0 | M24: 1 | N24: 0 | O24: 0
K25: Apr | L25: 0 | M25: 0 | N25: 0 | O25: 0
K26: May | L26: 0 | M26: 0 | N26: 0 | O26: 0
K27: Jun | L27: 0 | M27: 1 | N27: 0 | O27: 0
K28: Jul | L28: 0 | M28: 0 | N28: 0 | O28: 0
K29: Aug | L29: 0 | M29: 0 | N29: 0 | O29: 0
K30: Sep | L30: 0 | M30: 0 | N30: 0 | O30: 0
K31: Oct | L31: 0 | M31: 0 | N31: 0 | O31: 0
K32: Nov | L32: 0 | M32: 0 | N32: 0 | O32: 0
K33: Dec | L33: 0 | M33: 0 | N33: 0 | O33: 0
K34: Annual | L34: =AVERAGE(L22:L33) -> 0 | M34: =MAX(M22:M33) -> 1 | N34: =AVERAGE(N22:N33) -> 0 | O34: =MAX(O22:O33) -> 0
J36: =+A6 -> 2020 | K36: mg/Nm3 | L36: Monthly 1/2 hourly mean | M36: Monthly 1/2 hourly maximum | N36: Monthly daily mean | O36: Monthly daily maximum
J37: A3 | K37: Jan
K38: Feb
K39: Mar
K40: Apr
K41: May
K42: Jun
K43: Jul
K44: Aug
K45: Sep
K46: Oct
K47: Nov
A48: Comments : | K48: Dec
K49: Annual | L49: =AVERAGE(L37:L48) ->  | M49: =MAX(M37:M48) -> 0 | N49: =AVERAGE(N37:N48) ->  | O49: =MAX(O37:O48) -> 0
J51: =+A6 -> 2020 | K51: mg/Nm3 | L51: Monthly 1/2 hourly mean | M51: Monthly 1/2 hourly maximum | N51: Monthly daily mean | O51: Monthly daily maximum
J52: A4 | K52: Jan
K53: Feb
K54: Mar
K55: Apr
K56: May
K57: Jun
K58: Jul
K59: Aug
K60: Sep
K61: Oct
K62: Nov
K63: Dec
K64: Annual | L64: =AVERAGE(L52:L63) ->  | M64: =MAX(M52:M63) -> 0 | N64: =AVERAGE(N52:N63) ->  | O64: =MAX(O52:O63) -> 0
J66: =+A6 -> 2020 | K66: mg/Nm3 | L66: Monthly 1/2 hourly mean | M66: Monthly 1/2 hourly maximum | N66: Monthly daily mean | O66: Monthly daily maximum
J67: A5 | K67: Jan
K68: Feb
K69: Mar
K70: Apr
K71: May
K72: Jun
K73: Jul
K74: Aug
K75: Sep
K76: Oct
K77: Nov
K78: Dec
K79: Annual | L79: =AVERAGE(L67:L78) ->  | M79: =MAX(M67:M78) -> 0 | N79: =AVERAGE(N67:N78) ->  | O79: =MAX(O67:O78) -> 0
